{"text_format":"1","workbook":"xlsx","n_sheets":7,"sheets":["Accueil","Strat 1","Strat 2","Strat 3","grille","PIT","grille2"],"not_rendered":{"charts":0,"images":37,"macros":1,"external_links":1,"defined_names":29,"comments":4,"pivot_tables":0},"unopened":[],"bounds":{"document_bytes":16777216,"sheet_cells":100000,"rows_first":2000,"rows_last":500,"rows_between":2000,"halvings":0,"cell_chars":16384,"cell_head_chars":4096},"cells_cut":0,"cells_raw":0,"read":"whole","date_system":"1900"}

{"sheet":"Accueil","index":0,"n_rows":19,"n_cols":11,"rows_kept":19,"cut":false,"hidden":false,"merged":[]}
[]
[]
[]
[]
[]
[]
[]
[]
[]
[null,null,"Indiquer 4 informations essentielles et élaborer jusqu’à 3 stratégies de course en quelques clics !"]
[]
[null,null,"Dans les cellules à fonds jaunes",null,null,null,null,null,null,"Dans les cellules à fonds blancs"]
[]
[null,null,"saisie","obligatoire",null,null,null,null,null,"saisie","facultative"]
[]
[null,"P","Sélectionner le circuit",null,null,null,null,null,"P","choix du véhicule"]
[null,"P","indiquer la durée de la course",null,null,null,null,null,"P","choix du type de gomme lié au temps chrono"]
[null,"P","saisir un temps chrono au tour",null,null,null,null,null,"P","Indications des conditions d'usure et conso"]
[null,"P","indiquer l'autonomie du véhicule",null,null,null,null,null,"P","indication des temps d'arrêts aux stands"]

{"sheet":"Strat 1","index":1,"n_rows":77,"n_cols":22,"rows_kept":77,"cut":false,"hidden":false,"merged":[[61,1,61,2],[61,4,61,5],[59,4,59,5],[57,6,57,7],[60,13,60,14],[59,13,59,15],[57,1,57,2],[57,8,57,9],[57,10,57,11],[59,1,59,2],[59,10,59,11],[59,8,59,9],[61,7,61,8],[61,10,61,11],[57,16,57,17],[57,13,57,14],[59,16,59,17],[22,23,22,25],[46,20,47,20],[53,16,53,19],[54,16,54,19],[36,23,37,25],[32,23,32,25],[30,23,30,25],[4,27,4,29],[4,30,4,32],[6,16,6,17],[4,16,4,17],[32,1,32,2],[30,1,30,2],[24,1,24,2],[13,17,14,17],[21,15,22,17],[21,12,22,14],[30,16,30,17],[30,30,30,31],[32,27,32,28],[32,30,32,31],[30,27,30,28],[0,0,1,1],[2,0,18,1],[2,4,2,7],[2,8,2,9],[2,13,2,15],[6,4,6,7],[6,8,6,9],[4,8,4,9],[4,14,4,15],[17,5,17,6],[15,5,15,6],[14,2,15,4],[13,14,14,14],[15,11,15,13],[15,8,15,9],[4,2,4,4],[35,1,35,2],[12,4,12,5],[39,20,39,21],[36,1,36,2],[17,8,17,9],[17,11,17,13],[22,19,23,19],[36,16,37,16],[21,1,22,6],[21,7,22,7],[28,1,28,2],[25,1,25,2],[34,1,34,2],[21,8,22,10],[19,1,19,18],[39,1,39,2]]}
[]
[]
["DONNEES COURSE",null,"Circuit / Piste :",null,null,null,null,null,"Longueur circuit :",null,{"$f":"VLOOKUP(E3,grille!K19:L102,2,FALSE)","v":{"$error":"#N/A"}},"corners :",{"$f":"VLOOKUP(E3,grille!K19:M102,3,FALSE)","v":{"$error":"#N/A"}},"Condition météo, horaire : ",null,null,null,"0h0"]
[]
[null,null,"Catégorie du  véhicule : ",null,null,null,null,null,"Durée de la course :",null,"00:00:00","hr     où",0,{"$f":"K5+K58+K7","v":"00:00:40"},"Host salon : "]
[]
[null,null,"Modèle :",null,null,null,null,null,null,null,"00:00:40",null,null,null,null,"Cast : "]
[]
[null,null,null,null,"condition usure",null,"type gomme",null,null,null,"condition conso",null,"autonomie",null,"consommation","taux/vol",null,"volume"]
[null,null,null,null,"X1",null,null,null,null,null,"X1",null,0,"soit : ",{"$f":"(1*O12)/M13*K3","v":{"$error":"#N/A"}},{"$f":"(O10*1)/O12","v":{"$error":"#N/A"}},"Jauge initiale :",100]
[null,null,null,null,null,null,"Temps / tour","nbr tours",null,null,null,null,null,null,"pour :"]
[null,null,null,null,null,null,"00:00:00",null,null,null,null,null,null,null,100]
[null,null,null,null,null,null,null,null,null,null,null,null,{"$f":"M10*K3","v":{"$error":"#N/A"}}]
[null,null,null,null,null,null,null,null,null,null,null,null,null,null,"Litre/Sec",null,null,"1 tour",null,null,{"$f":"O12/V16","v":{"$error":"#N/A"}}]
[null,null,"Temps d'arrêt au stand :",null,null,null,null,null,null,null,null,null,null,null,null,null,null,null,null,null,"L/KM"]
[null,null,null,null,null,"ENTREE / SORTIE : ",null,{"$f":"PIT!S9-PIT!S7","v":3.5},"ECHANGE PNEUS :  ",null,{"$f":"PIT!S7","v":4.5},"REFUEL vitesse de ravitaillement : ",null,null,{"$f":"PIT!S17","v":6.666666666666667},null,1,{"$f":"PIT!S13","v":{"$error":"#DIV/0!"}},null,null,{"$f":"M10","v":0},{"$f":"K3*M10","v":{"$error":"#N/A"}}]
[null,null,null,null,null,null,null,null,null,null,null,null,null,null,null,null,null,null,null,null,null,"1 plein"]
[null,null,null,null,null,"Echange pneumatiques : ",null,{"$f":"H16+K16","v":8},"Temps pneus + fuel : ",null,{"$f":"H18+(M10*R16)","v":{"$error":"#DIV/0!"}},"Nbr de tours total de refuel : ",null,null,{"$f":"U36","v":{"$error":"#N/A"}},{"$f":"O18*R16","v":{"$error":"#N/A"}}]
[]
[]
[]
[null,"Tableau de bord stratégie de course ",null,null,null,null,null,1,"saisir un temps au tour\ndans données course",null,null,null,null,null,null,"Vous dépassez la durée de\ncourse de plus d'un tour"]
[null,null,null,null,null,null,null,null,null,null,null,null,null,null,null,null,null,null,null,"total nbr de tours"]
[]
[null,"Nbr de tours / pit",null,null,"Départ",null,"Pit 1",null,"Pit 2",null,"Pit 3",null,"Pit 4",null,"Pit 5",null,null,null,null,{"$f":"R25+P25+N25+L25+J25+H25+F25","v":0}]
[null,"Pertes de temps total : purge pénalité..."]
[null,null,"00:00:00",null,null,{"$f":"F25*$K$3","v":{"$error":"#N/A"}},null,{"$f":"H25*$K$3","v":{"$error":"#N/A"}},null,{"$f":"J25*$K$3","v":{"$error":"#N/A"}},null,{"$f":"L25*$K$3","v":{"$error":"#N/A"}},null,{"$f":"N25*$K$3","v":{"$error":"#N/A"}},null,{"$f":"P25*$K$3","v":{"$error":"#N/A"}}]
[]
[null,"Tours & Temps",null,null,null,{"$f":"F25","v":0},{"$f":"F25*E62","v":{"$error":"#N/A"}},{"$f":"F29+H25","v":0},{"$f":"(E62*H25)+G29","v":{"$error":"#N/A"}},{"$f":"H29+J25","v":0},{"$f":"(J25*E62)+I29","v":{"$error":"#N/A"}},{"$f":"J29+L25","v":0},{"$f":"L25*E62+K29","v":{"$error":"#N/A"}},{"$f":"L29+N25","v":0},{"$f":"(N25*E62)+M29","v":{"$error":"#N/A"}},{"$f":"N29+P25","v":0},{"$f":"(P25*E62)+O29","v":{"$error":"#N/A"}},{"$f":"P29+R25","v":0}]
[]
[null,null,null,null,null,null,{"$f":"F25","v":0},null,{"$f":"H25+F25","v":0},null,{"$f":"J25+H25+F25","v":0},null,{"$f":"L25+J25+H25+F25","v":0},null,{"$f":"N25+L25+J25+H25+F25","v":0},null,"Dépassement nbr de tours"]
[]
[null,"Type pneus"]
[]
[null,null,null,null,{"$f":"R10","v":100},null,{"$f":"G37*100","v":{"$error":"#N/A"}},null,{"$f":"I37*100","v":{"$error":"#N/A"}},null,{"$f":"K37*100","v":{"$error":"#N/A"}},null,{"$f":"M37*100","v":{"$error":"#N/A"}},null,{"$f":"O37*100","v":{"$error":"#N/A"}},null,null,null,null,"refuel en litres","refuel en tours"]
[null,"E42 conso L/km /  F42 besoin",null,null,{"$f":"$O$10","v":{"$error":"#N/A"}},{"$f":"(F27*E36)","v":{"$error":"#N/A"}},{"$f":"$O$10","v":{"$error":"#N/A"}},{"$f":"(H27*G36)","v":{"$error":"#N/A"}},{"$f":"$O$10","v":{"$error":"#N/A"}},{"$f":"(J27*I36)","v":{"$error":"#N/A"}},{"$f":"$O$10","v":{"$error":"#N/A"}},{"$f":"(L27*K36)","v":{"$error":"#N/A"}},{"$f":"$O$10","v":{"$error":"#N/A"}},{"$f":"(N27*M36)","v":{"$error":"#N/A"}},{"$f":"$O$10","v":{"$error":"#N/A"}},{"$f":"(P27*O36)","v":{"$error":"#N/A"}},null,null,null,{"$f":"G35+I35+K35+M35+O35","v":{"$error":"#N/A"}},{"$f":"T36/$O$10","v":{"$error":"#N/A"}}]
[null,"Jauge fuel",null,null,{"$f":"F25*$P$10","v":{"$error":"#N/A"}},{"$f":"(E37*$M$10)/1","v":{"$error":"#N/A"}},{"$f":"H25*$P$10","v":{"$error":"#N/A"}},{"$f":"(G37*$M$10)/1","v":{"$error":"#N/A"}},{"$f":"J25*$P$10","v":{"$error":"#N/A"}},{"$f":"(I37*$M$10)/1","v":{"$error":"#N/A"}},{"$f":"L25*$P$10","v":{"$error":"#N/A"}},{"$f":"(K37*$M$10)/1","v":{"$error":"#N/A"}},{"$f":"N25*$P$10","v":{"$error":"#N/A"}},{"$f":"(M37*$M$10)/1","v":{"$error":"#N/A"}},{"$f":"P25*$P$10","v":{"$error":"#N/A"}},{"$f":"(O37*$M$10)/1","v":{"$error":"#N/A"}},"cumul perte de temps conduite éco"]
[]
[null,null,null,null,{"$f":"E35/$O$10","v":{"$error":"#N/A"}},null,{"$f":"G35/$O$10","v":{"$error":"#N/A"}},null,{"$f":"I35/$O$10","v":{"$error":"#N/A"}},null,{"$f":"K35/$O$10","v":{"$error":"#N/A"}},null,{"$f":"M35/$O$10","v":{"$error":"#N/A"}},null,{"$f":"O35/$O$10","v":{"$error":"#N/A"}}]
[null,"Autonomie",null,null,{"$f":"IF(F25>$M$10,\"éco nécessaire\",E39)","v":{"$error":"#N/A"}},null,{"$f":"IF(H25>$M$10,\"éco nécessaire\",G39)","v":{"$error":"#N/A"}},null,{"$f":"IF(J25>$M$10,\"éco nécessaire\",I39)","v":{"$error":"#N/A"}},null,{"$f":"IF(L25>$M$10,\"éco nécessaire\",K39)","v":{"$error":"#N/A"}},null,{"$f":"IF(N25>$M$10,\"éco nécessaire\",M39)","v":{"$error":"#N/A"}},null,{"$f":"IF(P25>$M$10,\"éco nécessaire\",O39)","v":{"$error":"#N/A"}},null,null,null,null,null,"somme perte de tps utilisation éco"]
[null,null,null,null,null,null,null,null,null,null,null,null,null,null,null,null,null,null,null,null,"hr/mn/sec","1/100 hr"]
[null,null,"Calcul augmentation tps/tour en fonction de la conduite",null,null,null,null,null,null,null,null,null,null,null,null,null,"nbr tours /type pneus","chronos",null,"tps total / type pneu",{"$f":"V42/86400","v":"00:00:00"},{"$f":"E42+G42+I42+K42+M42+O42","v":0}]
[null,null,"S soft",null,{"$f":"SUMIF(E33,\"S soft\",F25)","v":0},null,{"$f":"SUMIF(G33,\"S soft\",H25)","v":0},{"$f":"IF(G43>0,1,0)","v":0},{"$f":"SUMIF(I33,\"S soft\",J25)","v":0},{"$f":"IF(I43>0,1,0)","v":0},{"$f":"SUMIF(K33,\"S soft\",L25)","v":0},{"$f":"IF(K43>0,1,0)","v":0},{"$f":"SUMIF(M33,\"S soft\",N25)","v":0},{"$f":"IF(M43>0,1,0)","v":0},{"$f":"SUMIF(O33,\"S soft\",P25)","v":0},{"$f":"IF(O43>0,1,0)","v":0},{"$f":"E43+G43+I43+K43+M43+O43","v":0},{"$f":"$G$12","v":0},null,{"$f":"IFERROR((Q43)*R43,0)","v":0}]
[null,null,"soft",null,{"$f":"SUMIF(E33,\"soft\",F25)","v":0},null,{"$f":"SUMIF(G33,\"soft\",H25)","v":0},{"$f":"IF(G44>0,1,0)","v":0},{"$f":"SUMIF(I33,\"soft\",J25)","v":0},{"$f":"IF(I44>0,1,0)","v":0},{"$f":"SUMIF(K33,\"soft\",L25)","v":0},{"$f":"IF(K44>0,1,0)","v":0},{"$f":"SUMIF(M33,\"soft\",N25)","v":0},{"$f":"IF(M44>0,1,0)","v":0},{"$f":"SUMIF(O33,\"soft\",P25)","v":0},{"$f":"IF(O44>0,1,0)","v":0},0,0,null,{"$f":"IFERROR((Q44)*R44,0)","v":0}]
[null,null,"médium",null,{"$f":"SUMIF(E33,\"médium\",F25)","v":0},null,{"$f":"SUMIF(G33,\"médium\",H25)","v":0},{"$f":"IF(G45>0,1,0)","v":0},{"$f":"SUMIF(I33,\"médium\",J25)","v":0},{"$f":"IF(I45>0,1,0)","v":0},{"$f":"SUMIF(K33,\"médium\",L25)","v":0},{"$f":"IF(K45>0,1,0)","v":0},{"$f":"SUMIF(M33,\"médium\",N25)","v":0},{"$f":"IF(M45>0,1,0)","v":0},{"$f":"SUMIF(O33,\"médium\",P25)","v":0},{"$f":"IF(O45>0,1,0)","v":0},0,0,null,{"$f":"IFERROR((Q45)*R45,0)","v":0}]
[null,null,"hard",null,{"$f":"SUMIF(E33,\"hard\",F25)","v":0},null,{"$f":"SUMIF(G33,\"hard\",H25)","v":0},{"$f":"IF(G46>0,1,0)","v":0},{"$f":"SUMIF(I33,\"hard\",J25)","v":0},{"$f":"IF(I46>0,1,0)","v":0},{"$f":"SUMIF(K33,\"hard\",L25)","v":0},{"$f":"IF(K46>0,1,0)","v":0},{"$f":"SUMIF(M33,\"hard\",N25)","v":0},{"$f":"IF(M46>0,1,0)","v":0},{"$f":"SUMIF(O33,\"hard\",P25)","v":0},{"$f":"IF(O46>0,1,0)","v":0},0,0,null,{"$f":"IFERROR(Q46*R46,0)","v":0}]
[null,null,"(sans) changement de pneus",null,{"$f":"SUMIF(E33,\"sans\",F25)","v":0},null,{"$f":"SUMIF(G33,\"sans\",H25)","v":0},null,{"$f":"SUMIF(I33,\"sans\",J25)","v":0},null,{"$f":"SUMIF(K33,\"sans\",L25)","v":0},null,{"$f":"SUMIF(M33,\"sans\",N25)","v":0},null,{"$f":"SUMIF(O33,\"sans\",P25)","v":0},null,0,0,null,{"$f":"IFERROR(Q47*R47,0)","v":0},"cumul pertes de temps"]
[null,null,"inter",null,{"$f":"SUMIF(E33,\"inter\",F25)","v":0},null,{"$f":"SUMIF(G33,\"inter\",H25)","v":0},{"$f":"IF(G48>0,1,0)","v":0},{"$f":"SUMIF(I33,\"inter\",J25)","v":0},{"$f":"IF(I48>0,1,0)","v":0},{"$f":"SUMIF(K33,\"inter\",L25)","v":0},{"$f":"IF(K48>0,1,0)","v":0},{"$f":"SUMIF(M33,\"inter\",N25)","v":0},{"$f":"IF(M48>0,1,0)","v":0},{"$f":"SUMIF(O33,\"inter\",P25)","v":0},{"$f":"IF(O48>0,1,0)","v":0},0,0,null,{"$f":"IFERROR(Q48*R48,0)","v":0}]
[null,null,"pluie",null,{"$f":"SUMIF(E33,\"pluie\",F25)","v":0},null,{"$f":"SUMIF(G33,\"pluie\",H25)","v":0},{"$f":"IF(G49>0,1,0)","v":0},{"$f":"SUMIF(I33,\"pluie\",J25)","v":0},{"$f":"IF(I49>0,1,0)","v":0},{"$f":"SUMIF(K33,\"pluie\",L25)","v":0},{"$f":"IF(K49>0,1,0)","v":0},{"$f":"SUMIF(M33,\"pluie\",N25)","v":0},{"$f":"IF(M49>0,1,0)","v":0},{"$f":"SUMIF(O33,\"pluie\",P25)","v":0},{"$f":"IF(O49>0,1,0)","v":0},0,0,null,{"$f":"IFERROR(Q49*R49,0)","v":0},{"$f":"U55+V42+C27","v":{"$error":"#N/A"}},{"$f":"U49/86400","v":{"$error":"#N/A"}}]
[null,null,"Nbr de changements de pneu",null,null,null,null,{"$f":"SUM(H43:H49)","v":0},null,{"$f":"SUM(J43:J49)","v":0},null,{"$f":"SUM(L43:L49)","v":0},null,{"$f":"SUM(N43:N49)","v":0},null,{"$f":"SUM(P43:P49)","v":0},{"$f":"P50+N50+L50+J50+H50+F50","v":0},null,null,{"$f":"SUM(T43:T49)","v":0},{"$f":"U49/N58","v":{"$error":"#N/A"}},{"$f":"U50/86400","v":{"$error":"#N/A"}}]
[null,null,"Nbr de refuels",null,null,{"$f":"IF(H36>0,1,0)","v":{"$error":"#N/A"}},null,{"$f":"IF(J36>0,1,0)","v":{"$error":"#N/A"}},null,{"$f":"IF(L36>0,1,0)","v":{"$error":"#N/A"}},null,{"$f":"IF(N36>0,1,0)","v":{"$error":"#N/A"}},null,{"$f":"IF(P36>0,1,0)","v":{"$error":"#N/A"}},null,{"$f":"IF(Q36>0,1,0)","v":0},{"$f":"P51+N51+L51+J51+H51+F51","v":{"$error":"#N/A"}}]
[null,null,null,null,null,null,null,null,null,null,null,null,null,null,null,null,null,null,null,"tps échange pneu :",{"$f":"Q50*K16","v":0},{"$f":"U52/86400","v":"00:00:00"}]
[null,null,null,null,null,null,null,null,null,null,null,null,null,null,null,null,null,null,null,"tps refuel :",{"$f":"$U$36*$R$16","v":{"$error":"#N/A"}},{"$error":"#N/A"}]
[null,null,null,null,null,null,null,null,null,null,null,null,null,null,null,null,"somme max refuel ou échange pneus :",null,null,null,{"$f":"MAX(Q50:Q51)","v":{"$error":"#N/A"}},{"$f":"H16/86400","v":"00:00:03.500"}]
[null,null,null,null,null,null,null,null,null,null,null,null,null,null,null,null,"Temps total arrêt au stand : ",null,null,null,{"$f":"(U54*H16)+U52+U53","v":{"$error":"#N/A"}},{"$f":"U55/86400","v":{"$error":"#N/A"}}]
[]
[]
[null,"Nombre de pits",null,null,{"$f":"U54","v":{"$error":"#N/A"}},null,"Temps /tour : ",null,{"$f":"G10","v":0},null,{"$f":"G12","v":"00:00:00"},null,null,{"$f":"T25","v":0},null,"en",{"$f":"T50+V49","v":{"$error":"#N/A"}},null,null,null,{"$f":"Q58*24","v":{"$error":"#N/A"}}]
[]
[null,"Cumul tps pit(s)",null,null,{"$f":"V55","v":{"$error":"#N/A"}},null,null,null,"Vitesse moy :",null,{"$f":"Q60/U58","v":{"$error":"#N/A"}},null,null,"Distance totale : ",null,null,{"$f":"N58*K3","v":{"$error":"#N/A"}}]
[]
[null,"Tps moyen strat 1",null,null,{"$f":"(T50+V49)/T25","v":{"$error":"#N/A"}},null,null,{"$f":"'Strat 2'!E62","v":{"$error":"#N/A"}},null,null,{"$f":"'Strat 3'!E62","v":{"$error":"#N/A"}},null,null,null,"consommation : ",null,1,{"$f":"P10*Q62","v":{"$error":"#N/A"}}]
[]
[]
[]
[]
[]
[]
[]
[]
[]
[]
[null,null,"Utilisation",null,{"$f":"G10","v":0},{"$f":"#REF!","v":{"$error":"#REF!"}},{"$f":"#REF!","v":{"$error":"#REF!"}}]
[null,null,null,null,{"$f":"G12","v":0},{"$f":"#REF!","v":{"$error":"#REF!"}},{"$f":"#REF!","v":{"$error":"#REF!"}}]
[null,null,"Obligatoire(s)",null,{"$f":"IF(E74=\"obligatoire\",E73,\"libre\")","v":"libre"},{"$f":"IF(F74=\"obligatoire\",F73,\"libre\")","v":{"$error":"#REF!"}},{"$f":"IF(G74=\"obligatoire\",G73,\"libre\")","v":{"$error":"#REF!"}}]
[null,null,null,null,null,null,null,null,null,null,null,null,null,null,null,false]
[null,null,"Utilisés",null,{"$f":"E33","v":0},{"$f":"G33","v":0},{"$f":"I33","v":0},{"$f":"K33","v":0},{"$f":"M33","v":0},{"$f":"O33","v":0},"libre",{"$f":"ISNUMBER(MATCH(E75,$E$77:$K$77,0))","v":true},{"$f":"ISNUMBER(MATCH(F75,$E$77:$K$77,0))","v":false},false,null,{"$f":"COUNTIF(L77:N77,\"FAUX\")","v":2}]

{"sheet":"Strat 2","index":2,"n_rows":77,"n_cols":22,"rows_kept":77,"cut":false,"hidden":false,"merged":[[60,13,60,14],[61,1,61,2],[61,4,61,5],[61,7,61,8],[61,10,61,11],[59,16,59,17],[46,20,47,20],[53,16,53,19],[54,16,54,19],[57,1,57,2],[57,6,57,7],[57,8,57,9],[57,10,57,11],[57,13,57,14],[57,16,57,17],[59,1,59,2],[59,4,59,5],[59,8,59,9],[59,10,59,11],[59,13,59,15],[39,1,39,2],[39,20,39,21],[30,26,30,27],[30,29,30,30],[32,1,32,2],[32,23,32,24],[32,26,32,27],[32,29,32,30],[30,1,30,2],[30,16,30,17],[30,23,30,24],[34,1,34,2],[35,1,35,2],[36,1,36,2],[36,16,37,16],[36,23,37,24],[22,19,23,19],[22,23,22,24],[24,1,24,2],[25,1,25,2],[28,1,28,2],[17,5,17,6],[17,8,17,9],[17,11,17,13],[19,1,19,18],[21,1,22,6],[21,7,22,7],[21,8,22,10],[21,12,22,14],[21,15,22,17],[4,26,4,28],[4,29,4,31],[6,4,6,7],[6,8,6,9],[12,4,12,5],[0,0,1,1],[2,0,18,1],[2,4,2,7],[2,8,2,9],[2,23,2,24],[4,2,4,4],[4,8,4,9],[4,14,4,15],[4,16,4,17],[4,23,4,25],[13,14,14,14],[13,17,14,17],[14,2,15,4],[15,5,15,6],[15,8,15,9],[15,11,15,13]]}
[]
[]
["DONNEES COURSE",null,"Circuit / Piste :",null,{"$f":"'Strat 1'!$E$3:$H$3","v":0},null,null,null,"Longueur circuit :",null,{"$f":"'Strat 1'!$K$3","v":{"$error":"#N/A"}},"corners :",{"$f":"'Strat 1'!$M$3","v":{"$error":"#N/A"}}]
[]
[null,null,"Catégorie du  véhicule : ",null,null,{"$f":"'Strat 1'!$F$5","v":0},null,null,"Durée de la course :",null,{"$f":"'Strat 1'!$K$5","v":"00:00:00"},"hr     où",{"$f":"'Strat 1'!$M$5","v":0},{"$f":"K5+K58+K7","v":"00:00:40"}]
[]
[null,null,"Modèle :",null,{"$f":"'Strat 1'!$E$7:$H$7","v":0},null,null,null,null,null,"00:00:40"]
[]
[null,null,null,null,"condition usure",null,"type gomme",null,null,null,"condition conso",null,"autonomie",null,"consommation","taux/vol",null,"volume"]
[null,null,null,null,{"$f":"'Strat 1'!$E$10","v":"X1"},null,null,null,null,null,{"$f":"'Strat 1'!$K$10","v":"X1"},null,{"$f":"'Strat 1'!$M$10","v":0},"soit : ",{"$f":"(O11*M12)/M13*K3","v":{"$error":"#N/A"}},{"$f":"(O10*1)/M12","v":{"$error":"#N/A"}},"Jauge initiale :",{"$f":"'Strat 1'!$R$10","v":100}]
[null,null,null,null,null,null,"Temps / tour","nbr tours",null,null,null,null,"pour :",null,1]
[null,null,null,null,null,null,"00:00:00",null,null,null,null,null,100]
[null,null,null,null,null,null,null,null,null,null,null,null,{"$f":"M10*K3","v":{"$error":"#N/A"}}]
[null,null,null,null,null,null,null,null,null,null,null,null,null,null,"Litre/Sec",null,null,"1 tour",null,null,{"$f":"M12/V16","v":{"$error":"#N/A"}}]
[null,null,"Temps d'arrêt au stand :",null,null,null,null,null,null,null,null,null,null,null,null,null,null,null,null,null,"L/KM"]
[null,null,null,null,null,"ENTREE / SORTIE : ",null,{"$f":"PIT!S9-PIT!S7","v":3.5},"ECHANGE PNEUS :  ",null,{"$f":"PIT!S7","v":4.5},"REFUEL vitesse de ravitaillement : ",null,null,{"$f":"PIT!S17","v":6.666666666666667},null,1,{"$f":"PIT!S13","v":{"$error":"#DIV/0!"}},null,null,{"$f":"M10","v":0},{"$f":"K3*M10","v":{"$error":"#N/A"}}]
[null,null,null,null,null,null,null,null,null,null,null,null,null,null,null,null,null,null,null,null,null,"1 plein"]
[null,null,null,null,null,"Echange pneumatiques : ",null,{"$f":"H16+K16","v":8},"Temps pneus + fuel : ",null,{"$f":"H18+(M10*R16)","v":{"$error":"#DIV/0!"}},"Nbr de tours total de refuel : ",null,null,{"$f":"U36","v":{"$error":"#N/A"}},{"$f":"O18*R16","v":{"$error":"#N/A"}}]
[]
[]
[]
[null,"Tableau de bord stratégie de course ",null,null,null,null,null,2,"saisir un temps au tour\ndans données course",null,null,null,null,null,null,"Vous dépassez la durée de\ncourse de plus d'un tour"]
[null,null,null,null,null,null,null,null,null,null,null,null,null,null,null,null,null,null,null,"total nbr de tours"]
[]
[null,"Nbr de tours / pit",null,null,"Départ",null,"Pit 1",null,"Pit 2",null,"Pit 3",null,"Pit 4",null,"Pit 5",null,null,null,null,{"$f":"R25+P25+N25+L25+J25+H25+F25","v":0}]
[null,"Pertes de temps total : purge pénalité..."]
[null,null,"00:00:00",null,null,{"$f":"F25*$K$3","v":{"$error":"#N/A"}},null,{"$f":"H25*$K$3","v":{"$error":"#N/A"}},null,{"$f":"J25*$K$3","v":{"$error":"#N/A"}},null,{"$f":"L25*$K$3","v":{"$error":"#N/A"}},null,{"$f":"N25*$K$3","v":{"$error":"#N/A"}},null,{"$f":"P25*$K$3","v":{"$error":"#N/A"}}]
[]
[null,"Tours & Temps",null,null,null,{"$f":"F25","v":0},{"$f":"F25*E62","v":{"$error":"#N/A"}},{"$f":"F29+H25","v":0},{"$f":"(E62*H25)+G29","v":{"$error":"#N/A"}},{"$f":"H29+J25","v":0},{"$f":"(J25*E62)+I29","v":{"$error":"#N/A"}},{"$f":"J29+L25","v":0},{"$f":"L25*E62+K29","v":{"$error":"#N/A"}},{"$f":"L29+N25","v":0},{"$f":"(N25*E62)+M29","v":{"$error":"#N/A"}},{"$f":"N29+P25","v":0},{"$f":"(P25*E62)+O29","v":{"$error":"#N/A"}},{"$f":"P29+R25","v":0}]
[]
[null,null,null,null,null,null,{"$f":"F25","v":0},null,{"$f":"H25+F25","v":0},null,{"$f":"J25+H25+F25","v":0},null,{"$f":"L25+J25+H25+F25","v":0},null,{"$f":"N25+L25+J25+H25+F25","v":0},null,"Dépassement nbr de tours"]
[]
[null,"Type pneus"]
[]
[null,null,null,null,{"$f":"R10","v":100},null,{"$f":"G37*100","v":{"$error":"#N/A"}},null,{"$f":"I37*100","v":{"$error":"#N/A"}},null,{"$f":"K37*100","v":{"$error":"#N/A"}},null,{"$f":"M37*100","v":{"$error":"#N/A"}},null,{"$f":"O37*100","v":{"$error":"#N/A"}},null,null,null,null,"refuel en litres","refuel en tours"]
[null,"E42 conso L/km /  F42 besoin",null,null,{"$f":"$O$10","v":{"$error":"#N/A"}},{"$f":"(F27*E36)","v":{"$error":"#N/A"}},{"$f":"$O$10","v":{"$error":"#N/A"}},{"$f":"(H27*G36)","v":{"$error":"#N/A"}},{"$f":"$O$10","v":{"$error":"#N/A"}},{"$f":"(J27*I36)","v":{"$error":"#N/A"}},{"$f":"$O$10","v":{"$error":"#N/A"}},{"$f":"(L27*K36)","v":{"$error":"#N/A"}},{"$f":"$O$10","v":{"$error":"#N/A"}},{"$f":"(N27*M36)","v":{"$error":"#N/A"}},{"$f":"$O$10","v":{"$error":"#N/A"}},{"$f":"(P27*O36)","v":{"$error":"#N/A"}},null,null,null,{"$f":"G35+I35+K35+M35+O35","v":{"$error":"#N/A"}},{"$f":"T36/$O$10","v":{"$error":"#N/A"}}]
[null,"Jauge fuel",null,null,{"$f":"F25*$P$10","v":{"$error":"#N/A"}},{"$f":"(E37*$M$10)/1","v":{"$error":"#N/A"}},{"$f":"H25*$P$10","v":{"$error":"#N/A"}},{"$f":"(G37*$M$10)/1","v":{"$error":"#N/A"}},{"$f":"J25*$P$10","v":{"$error":"#N/A"}},{"$f":"(I37*$M$10)/1","v":{"$error":"#N/A"}},{"$f":"L25*$P$10","v":{"$error":"#N/A"}},{"$f":"(K37*$M$10)/1","v":{"$error":"#N/A"}},{"$f":"N25*$P$10","v":{"$error":"#N/A"}},{"$f":"(M37*$M$10)/1","v":{"$error":"#N/A"}},{"$f":"P25*$P$10","v":{"$error":"#N/A"}},{"$f":"(O37*$M$10)/1","v":{"$error":"#N/A"}},"cumul perte de temps conduite éco"]
[]
[null,null,null,null,{"$f":"E35/$O$10","v":{"$error":"#N/A"}},null,{"$f":"G35/$O$10","v":{"$error":"#N/A"}},null,{"$f":"I35/$O$10","v":{"$error":"#N/A"}},null,{"$f":"K35/$O$10","v":{"$error":"#N/A"}},null,{"$f":"M35/$O$10","v":{"$error":"#N/A"}},null,{"$f":"O35/$O$10","v":{"$error":"#N/A"}}]
[null,"Autonomie",null,null,{"$f":"IF(F25>$M$10,\"éco nécessaire\",E39)","v":{"$error":"#N/A"}},null,{"$f":"IF(H25>$M$10,\"éco nécessaire\",G39)","v":{"$error":"#N/A"}},null,{"$f":"IF(J25>$M$10,\"éco nécessaire\",I39)","v":{"$error":"#N/A"}},null,{"$f":"IF(L25>$M$10,\"éco nécessaire\",K39)","v":{"$error":"#N/A"}},null,{"$f":"IF(N25>$M$10,\"éco nécessaire\",M39)","v":{"$error":"#N/A"}},null,{"$f":"IF(P25>$M$10,\"éco nécessaire\",O39)","v":{"$error":"#N/A"}},null,null,null,null,null,"somme perte de tps utilisation éco"]
[null,null,null,null,null,null,null,null,null,null,null,null,null,null,null,null,null,null,null,null,"hr/mn/sec","1/100 hr"]
[null,null,"Calcul augmentation tps/tour en fonction de la conduite",null,null,null,null,null,null,null,null,null,null,null,null,null,"nbr tours /type pneus","chronos",null,"tps total / type pneu",{"$f":"V42/86400","v":"00:00:00"},{"$f":"E42+G42+I42+K42+M42+O42","v":0}]
[null,null,"S soft",null,{"$f":"SUMIF(E33,\"S soft\",F25)","v":0},null,{"$f":"SUMIF(G33,\"S soft\",H25)","v":0},{"$f":"IF(G43>0,1,0)","v":0},{"$f":"SUMIF(I33,\"S soft\",J25)","v":0},{"$f":"IF(I43>0,1,0)","v":0},{"$f":"SUMIF(K33,\"S soft\",L25)","v":0},{"$f":"IF(K43>0,1,0)","v":0},{"$f":"SUMIF(M33,\"S soft\",N25)","v":0},{"$f":"IF(M43>0,1,0)","v":0},{"$f":"SUMIF(O33,\"S soft\",P25)","v":0},{"$f":"IF(O43>0,1,0)","v":0},{"$f":"E43+G43+I43+K43+M43+O43","v":0},{"$f":"$G$12","v":0},null,{"$f":"IFERROR((Q43)*R43,0)","v":0}]
[null,null,"soft",null,{"$f":"SUMIF(E33,\"soft\",F25)","v":0},null,{"$f":"SUMIF(G33,\"soft\",H25)","v":0},{"$f":"IF(G44>0,1,0)","v":0},{"$f":"SUMIF(I33,\"soft\",J25)","v":0},{"$f":"IF(I44>0,1,0)","v":0},{"$f":"SUMIF(K33,\"soft\",L25)","v":0},{"$f":"IF(K44>0,1,0)","v":0},{"$f":"SUMIF(M33,\"soft\",N25)","v":0},{"$f":"IF(M44>0,1,0)","v":0},{"$f":"SUMIF(O33,\"soft\",P25)","v":0},{"$f":"IF(O44>0,1,0)","v":0},0,0,null,{"$f":"IFERROR((Q44)*R44,0)","v":0}]
[null,null,"médium",null,{"$f":"SUMIF(E33,\"médium\",F25)","v":0},null,{"$f":"SUMIF(G33,\"médium\",H25)","v":0},{"$f":"IF(G45>0,1,0)","v":0},{"$f":"SUMIF(I33,\"médium\",J25)","v":0},{"$f":"IF(I45>0,1,0)","v":0},{"$f":"SUMIF(K33,\"médium\",L25)","v":0},{"$f":"IF(K45>0,1,0)","v":0},{"$f":"SUMIF(M33,\"médium\",N25)","v":0},{"$f":"IF(M45>0,1,0)","v":0},{"$f":"SUMIF(O33,\"médium\",P25)","v":0},{"$f":"IF(O45>0,1,0)","v":0},0,0,null,{"$f":"IFERROR((Q45)*R45,0)","v":0}]
[null,null,"hard",null,{"$f":"SUMIF(E33,\"hard\",F25)","v":0},null,{"$f":"SUMIF(G33,\"hard\",H25)","v":0},{"$f":"IF(G46>0,1,0)","v":0},{"$f":"SUMIF(I33,\"hard\",J25)","v":0},{"$f":"IF(I46>0,1,0)","v":0},{"$f":"SUMIF(K33,\"hard\",L25)","v":0},{"$f":"IF(K46>0,1,0)","v":0},{"$f":"SUMIF(M33,\"hard\",N25)","v":0},{"$f":"IF(M46>0,1,0)","v":0},{"$f":"SUMIF(O33,\"hard\",P25)","v":0},{"$f":"IF(O46>0,1,0)","v":0},0,0,null,{"$f":"IFERROR(Q46*R46,0)","v":0}]
[null,null,"(sans) changement de pneus",null,{"$f":"SUMIF(E33,\"sans\",F25)","v":0},null,{"$f":"SUMIF(G33,\"sans\",H25)","v":0},null,{"$f":"SUMIF(I33,\"sans\",J25)","v":0},null,{"$f":"SUMIF(K33,\"sans\",L25)","v":0},null,{"$f":"SUMIF(M33,\"sans\",N25)","v":0},null,{"$f":"SUMIF(O33,\"sans\",P25)","v":0},null,0,0,null,{"$f":"IFERROR(Q47*R47,0)","v":0},"cumul pertes de temps"]
[null,null,"inter",null,{"$f":"SUMIF(E33,\"inter\",F25)","v":0},null,{"$f":"SUMIF(G33,\"inter\",H25)","v":0},{"$f":"IF(G48>0,1,0)","v":0},{"$f":"SUMIF(I33,\"inter\",J25)","v":0},{"$f":"IF(I48>0,1,0)","v":0},{"$f":"SUMIF(K33,\"inter\",L25)","v":0},{"$f":"IF(K48>0,1,0)","v":0},{"$f":"SUMIF(M33,\"inter\",N25)","v":0},{"$f":"IF(M48>0,1,0)","v":0},{"$f":"SUMIF(O33,\"inter\",P25)","v":0},{"$f":"IF(O48>0,1,0)","v":0},0,0,null,{"$f":"IFERROR(Q48*R48,0)","v":0}]
[null,null,"pluie",null,{"$f":"SUMIF(E33,\"pluie\",F25)","v":0},null,{"$f":"SUMIF(G33,\"pluie\",H25)","v":0},{"$f":"IF(G49>0,1,0)","v":0},{"$f":"SUMIF(I33,\"pluie\",J25)","v":0},{"$f":"IF(I49>0,1,0)","v":0},{"$f":"SUMIF(K33,\"pluie\",L25)","v":0},{"$f":"IF(K49>0,1,0)","v":0},{"$f":"SUMIF(M33,\"pluie\",N25)","v":0},{"$f":"IF(M49>0,1,0)","v":0},{"$f":"SUMIF(O33,\"pluie\",P25)","v":0},{"$f":"IF(O49>0,1,0)","v":0},0,0,null,{"$f":"IFERROR(Q49*R49,0)","v":0},{"$f":"U55+V42+C27","v":{"$error":"#N/A"}},{"$f":"U49/86400","v":{"$error":"#N/A"}}]
[null,null,"Nbr de changements de pneu",null,null,null,null,{"$f":"SUM(H43:H49)","v":0},null,{"$f":"SUM(J43:J49)","v":0},null,{"$f":"SUM(L43:L49)","v":0},null,{"$f":"SUM(N43:N49)","v":0},null,{"$f":"SUM(P43:P49)","v":0},{"$f":"P50+N50+L50+J50+H50+F50","v":0},null,null,{"$f":"SUM(T43:T49)","v":0},{"$f":"U49/N58","v":{"$error":"#N/A"}},{"$f":"U50/86400","v":{"$error":"#N/A"}}]
[null,null,"Nbr de refuels",null,null,{"$f":"IF(H36>0,1,0)","v":{"$error":"#N/A"}},null,{"$f":"IF(J36>0,1,0)","v":{"$error":"#N/A"}},null,{"$f":"IF(L36>0,1,0)","v":{"$error":"#N/A"}},null,{"$f":"IF(N36>0,1,0)","v":{"$error":"#N/A"}},null,{"$f":"IF(P36>0,1,0)","v":{"$error":"#N/A"}},null,{"$f":"IF(Q36>0,1,0)","v":0},{"$f":"P51+N51+L51+J51+H51+F51","v":{"$error":"#N/A"}}]
[null,null,null,null,null,null,null,null,null,null,null,null,null,null,null,null,null,null,null,"tps échange pneu :",{"$f":"Q50*K16","v":0},{"$f":"U52/86400","v":"00:00:00"}]
[null,null,null,null,null,null,null,null,null,null,null,null,null,null,null,null,null,null,null,"tps refuel :",{"$f":"$U$36*$R$16","v":{"$error":"#N/A"}},{"$error":"#N/A"}]
[null,null,null,null,null,null,null,null,null,null,null,null,null,null,null,null,"somme max refuel ou échange pneus :",null,null,null,{"$f":"MAX(Q50:Q51)","v":{"$error":"#N/A"}},{"$f":"H16/86400","v":"00:00:03.500"}]
[null,null,null,null,null,null,null,null,null,null,null,null,null,null,null,null,"Temps total arrêt au stand : ",null,null,null,{"$f":"(U54*H16)+U52+U53","v":{"$error":"#N/A"}},{"$f":"U55/86400","v":{"$error":"#N/A"}}]
[]
[]
[null,"Nombre de pits",null,null,{"$f":"U54","v":{"$error":"#N/A"}},null,"Temps /tour : ",null,{"$f":"G10","v":0},null,{"$f":"G12","v":"00:00:00"},null,null,{"$f":"T25","v":0},null,"en",{"$f":"T50+V49","v":{"$error":"#N/A"}},null,null,null,{"$f":"Q58*24","v":{"$error":"#N/A"}}]
[]
[null,"Cumul tps pit(s)",null,null,{"$f":"V55","v":{"$error":"#N/A"}},null,null,null,"Vitesse moy :",null,{"$f":"Q60/U58","v":{"$error":"#N/A"}},null,null,"Distance totale : ",null,null,{"$f":"N58*K3","v":{"$error":"#N/A"}}]
[]
[null,"Tps moyen strat 2",null,null,{"$f":"(T50+V49)/T25","v":{"$error":"#N/A"}},null,null,{"$f":"'Strat 1'!E62","v":{"$error":"#N/A"}},null,null,{"$f":"'Strat 3'!E62","v":{"$error":"#N/A"}},null,null,null,"consommation : ",null,1,{"$f":"P10*Q62","v":{"$error":"#N/A"}}]
[]
[]
[]
[]
[]
[]
[]
[]
[]
[]
[null,null,"Utilisation",null,{"$f":"G10","v":0},{"$f":"#REF!","v":{"$error":"#REF!"}},{"$f":"#REF!","v":{"$error":"#REF!"}}]
[null,null,null,null,{"$f":"G12","v":0},{"$f":"#REF!","v":{"$error":"#REF!"}},{"$f":"#REF!","v":{"$error":"#REF!"}}]
[null,null,"Obligatoire(s)",null,{"$f":"IF(E74=\"obligatoire\",E73,\"libre\")","v":"libre"},{"$f":"IF(F74=\"obligatoire\",F73,\"libre\")","v":{"$error":"#REF!"}},{"$f":"IF(G74=\"obligatoire\",G73,\"libre\")","v":{"$error":"#REF!"}}]
[null,null,null,null,null,null,null,null,null,null,null,null,null,null,null,false]
[null,null,"Utilisés",null,{"$f":"E33","v":0},{"$f":"G33","v":0},{"$f":"I33","v":0},{"$f":"K33","v":0},{"$f":"M33","v":0},{"$f":"O33","v":0},"libre",{"$f":"ISNUMBER(MATCH(E75,$E$77:$K$77,0))","v":true},{"$f":"ISNUMBER(MATCH(F75,$E$77:$K$77,0))","v":false},false,null,{"$f":"COUNTIF(L77:N77,\"FAUX\")","v":2}]

{"sheet":"Strat 3","index":3,"n_rows":77,"n_cols":22,"rows_kept":77,"cut":false,"hidden":false,"merged":[[60,13,60,14],[61,1,61,2],[61,4,61,5],[61,7,61,8],[61,10,61,11],[59,16,59,17],[46,20,47,20],[53,16,53,19],[54,16,54,19],[57,1,57,2],[57,6,57,7],[57,8,57,9],[57,10,57,11],[57,13,57,14],[57,16,57,17],[59,1,59,2],[59,4,59,5],[59,8,59,9],[59,10,59,11],[59,13,59,15],[39,1,39,2],[39,20,39,21],[30,26,30,27],[30,29,30,30],[32,1,32,2],[32,23,32,24],[32,26,32,27],[32,29,32,30],[30,1,30,2],[30,16,30,17],[30,23,30,24],[34,1,34,2],[35,1,35,2],[36,1,36,2],[36,16,37,16],[36,23,37,24],[22,23,22,24],[24,1,24,2],[25,1,25,2],[28,1,28,2],[21,1,22,6],[21,7,22,7],[21,8,22,10],[21,12,22,14],[21,15,22,17],[17,5,17,6],[17,8,17,9],[17,11,17,13],[19,1,19,18],[22,19,23,19],[4,26,4,28],[4,29,4,31],[6,4,6,7],[6,8,6,9],[12,4,12,5],[0,0,1,1],[2,0,18,1],[2,4,2,7],[2,8,2,9],[2,23,2,24],[4,2,4,4],[4,8,4,9],[4,14,4,15],[4,16,4,17],[4,23,4,25],[13,14,14,14],[13,17,14,17],[14,2,15,4],[15,5,15,6],[15,8,15,9],[15,11,15,13]]}
[]
[]
["DONNEES COURSE",null,"Circuit / Piste :",null,{"$f":"'Strat 1'!$E$3:$H$3","v":0},null,null,null,"Longueur circuit :",null,{"$f":"'Strat 1'!$K$3","v":{"$error":"#N/A"}},"corners :",{"$f":"'Strat 1'!$M$3","v":{"$error":"#N/A"}}]
[]
[null,null,"Catégorie du  véhicule : ",null,null,{"$f":"'Strat 1'!$F$5","v":0},null,null,"Durée de la course :",null,{"$f":"'Strat 1'!$K$5","v":"00:00:00"},"hr     où",{"$f":"'Strat 1'!$M$5","v":0},{"$f":"K5+K58+K7","v":"00:00:40"}]
[]
[null,null,"Modèle :",null,{"$f":"'Strat 1'!$E$7:$H$7","v":0},null,null,null,null,null,"00:00:40"]
[]
[null,null,null,null,"condition usure",null,"type gomme",null,null,null,"condition conso",null,"autonomie",null,"consommation","taux/vol",null,"volume"]
[null,null,null,null,{"$f":"'Strat 1'!$E$10","v":"X1"},null,null,null,null,null,{"$f":"'Strat 1'!$K$10","v":"X1"},null,{"$f":"'Strat 1'!$M$10","v":0},"soit : ",{"$f":"(O11*M12)/M13*K3","v":{"$error":"#N/A"}},{"$f":"(O10*1)/M12","v":{"$error":"#N/A"}},"Jauge initiale :",{"$f":"'Strat 1'!$R$10","v":100}]
[null,null,null,null,null,null,"Temps / tour","nbr tours",null,null,null,null,"pour :",null,1]
[null,null,null,null,null,null,"00:00:00",null,null,null,null,null,100]
[null,null,null,null,null,null,null,null,null,null,null,null,{"$f":"M10*K3","v":{"$error":"#N/A"}}]
[null,null,null,null,null,null,null,null,null,null,null,null,null,null,"Litre/Sec",null,null,"1 tour",null,null,{"$f":"M12/V16","v":{"$error":"#N/A"}}]
[null,null,"Temps d'arrêt au stand :",null,null,null,null,null,null,null,null,null,null,null,null,null,null,null,null,null,"L/KM"]
[null,null,null,null,null,"ENTREE / SORTIE : ",null,{"$f":"PIT!S9-PIT!S7","v":3.5},"ECHANGE PNEUS :  ",null,{"$f":"PIT!S7","v":4.5},"REFUEL vitesse de ravitaillement : ",null,null,{"$f":"PIT!S17","v":6.666666666666667},null,1,{"$f":"PIT!S13","v":{"$error":"#DIV/0!"}},null,null,{"$f":"M10","v":0},{"$f":"K3*M10","v":{"$error":"#N/A"}}]
[null,null,null,null,null,null,null,null,null,null,null,null,null,null,null,null,null,null,null,null,null,"1 plein"]
[null,null,null,null,null,"Echange pneumatiques : ",null,{"$f":"H16+K16","v":8},"Temps pneus + fuel : ",null,{"$f":"H18+(M10*R16)","v":{"$error":"#DIV/0!"}},"Nbr de tours total de refuel : ",null,null,{"$f":"U36","v":{"$error":"#N/A"}},{"$f":"O18*R16","v":{"$error":"#N/A"}}]
[]
[]
[]
[null,"Tableau de bord stratégie de course ",null,null,null,null,null,3,"saisir un temps au tour\ndans données course",null,null,null,null,null,null,"Vous dépassez la durée de\ncourse de plus d'un tour"]
[null,null,null,null,null,null,null,null,null,null,null,null,null,null,null,null,null,null,null,"total nbr de tours"]
[]
[null,"Nbr de tours / pit",null,null,"Départ",null,"Pit 1",null,"Pit 2",null,"Pit 3",null,"Pit 4",null,"Pit 5",null,null,null,null,{"$f":"R25+P25+N25+L25+J25+H25+F25","v":0}]
[null,"Pertes de temps total : purge pénalité..."]
[null,null,"00:00:00",null,null,{"$f":"F25*$K$3","v":{"$error":"#N/A"}},null,{"$f":"H25*$K$3","v":{"$error":"#N/A"}},null,{"$f":"J25*$K$3","v":{"$error":"#N/A"}},null,{"$f":"L25*$K$3","v":{"$error":"#N/A"}},null,{"$f":"N25*$K$3","v":{"$error":"#N/A"}},null,{"$f":"P25*$K$3","v":{"$error":"#N/A"}}]
[]
[null,"Tours & Temps",null,null,null,{"$f":"F25","v":0},{"$f":"F25*E62","v":{"$error":"#N/A"}},{"$f":"F29+H25","v":0},{"$f":"(E62*H25)+G29","v":{"$error":"#N/A"}},{"$f":"H29+J25","v":0},{"$f":"(J25*E62)+I29","v":{"$error":"#N/A"}},{"$f":"J29+L25","v":0},{"$f":"L25*E62+K29","v":{"$error":"#N/A"}},{"$f":"L29+N25","v":0},{"$f":"(N25*E62)+M29","v":{"$error":"#N/A"}},{"$f":"N29+P25","v":0},{"$f":"(P25*E62)+O29","v":{"$error":"#N/A"}},{"$f":"P29+R25","v":0}]
[]
[null,null,null,null,null,null,{"$f":"F25","v":0},null,{"$f":"H25+F25","v":0},null,{"$f":"J25+H25+F25","v":0},null,{"$f":"L25+J25+H25+F25","v":0},null,{"$f":"N25+L25+J25+H25+F25","v":0},null,"Dépassement nbr de tours"]
[]
[null,"Type pneus"]
[]
[null,null,null,null,{"$f":"R10","v":100},null,{"$f":"G37*100","v":{"$error":"#N/A"}},null,{"$f":"I37*100","v":{"$error":"#N/A"}},null,{"$f":"K37*100","v":{"$error":"#N/A"}},null,{"$f":"M37*100","v":{"$error":"#N/A"}},null,{"$f":"O37*100","v":{"$error":"#N/A"}},null,null,null,null,"refuel en litres","refuel en tours"]
[null,"E42 conso L/km /  F42 besoin",null,null,{"$f":"$O$10","v":{"$error":"#N/A"}},{"$f":"(F27*E36)","v":{"$error":"#N/A"}},{"$f":"$O$10","v":{"$error":"#N/A"}},{"$f":"(H27*G36)","v":{"$error":"#N/A"}},{"$f":"$O$10","v":{"$error":"#N/A"}},{"$f":"(J27*I36)","v":{"$error":"#N/A"}},{"$f":"$O$10","v":{"$error":"#N/A"}},{"$f":"(L27*K36)","v":{"$error":"#N/A"}},{"$f":"$O$10","v":{"$error":"#N/A"}},{"$f":"(N27*M36)","v":{"$error":"#N/A"}},{"$f":"$O$10","v":{"$error":"#N/A"}},{"$f":"(P27*O36)","v":{"$error":"#N/A"}},null,null,null,{"$f":"G35+I35+K35+M35+O35","v":{"$error":"#N/A"}},{"$f":"T36/$O$10","v":{"$error":"#N/A"}}]
[null,"Jauge fuel",null,null,{"$f":"F25*$P$10","v":{"$error":"#N/A"}},{"$f":"(E37*$M$10)/1","v":{"$error":"#N/A"}},{"$f":"H25*$P$10","v":{"$error":"#N/A"}},{"$f":"(G37*$M$10)/1","v":{"$error":"#N/A"}},{"$f":"J25*$P$10","v":{"$error":"#N/A"}},{"$f":"(I37*$M$10)/1","v":{"$error":"#N/A"}},{"$f":"L25*$P$10","v":{"$error":"#N/A"}},{"$f":"(K37*$M$10)/1","v":{"$error":"#N/A"}},{"$f":"N25*$P$10","v":{"$error":"#N/A"}},{"$f":"(M37*$M$10)/1","v":{"$error":"#N/A"}},{"$f":"P25*$P$10","v":{"$error":"#N/A"}},{"$f":"(O37*$M$10)/1","v":{"$error":"#N/A"}},"cumul perte de temps conduite éco"]
[]
[null,null,null,null,{"$f":"E35/$O$10","v":{"$error":"#N/A"}},null,{"$f":"G35/$O$10","v":{"$error":"#N/A"}},null,{"$f":"I35/$O$10","v":{"$error":"#N/A"}},null,{"$f":"K35/$O$10","v":{"$error":"#N/A"}},null,{"$f":"M35/$O$10","v":{"$error":"#N/A"}},null,{"$f":"O35/$O$10","v":{"$error":"#N/A"}}]
[null,"Autonomie",null,null,{"$f":"IF(F25>$M$10,\"éco nécessaire\",E39)","v":{"$error":"#N/A"}},null,{"$f":"IF(H25>$M$10,\"éco nécessaire\",G39)","v":{"$error":"#N/A"}},null,{"$f":"IF(J25>$M$10,\"éco nécessaire\",I39)","v":{"$error":"#N/A"}},null,{"$f":"IF(L25>$M$10,\"éco nécessaire\",K39)","v":{"$error":"#N/A"}},null,{"$f":"IF(N25>$M$10,\"éco nécessaire\",M39)","v":{"$error":"#N/A"}},null,{"$f":"IF(P25>$M$10,\"éco nécessaire\",O39)","v":{"$error":"#N/A"}},null,null,null,null,null,"somme perte de tps utilisation éco"]
[null,null,null,null,null,null,null,null,null,null,null,null,null,null,null,null,null,null,null,null,"hr/mn/sec","1/100 hr"]
[null,null,"Calcul augmentation tps/tour en fonction de la conduite",null,null,null,null,null,null,null,null,null,null,null,null,null,"nbr tours /type pneus","chronos",null,"tps total / type pneu",{"$f":"V42/86400","v":"00:00:00"},{"$f":"E42+G42+I42+K42+M42+O42","v":0}]
[null,null,"S soft",null,{"$f":"SUMIF(E33,\"S soft\",F25)","v":0},null,{"$f":"SUMIF(G33,\"S soft\",H25)","v":0},{"$f":"IF(G43>0,1,0)","v":0},{"$f":"SUMIF(I33,\"S soft\",J25)","v":0},{"$f":"IF(I43>0,1,0)","v":0},{"$f":"SUMIF(K33,\"S soft\",L25)","v":0},{"$f":"IF(K43>0,1,0)","v":0},{"$f":"SUMIF(M33,\"S soft\",N25)","v":0},{"$f":"IF(M43>0,1,0)","v":0},{"$f":"SUMIF(O33,\"S soft\",P25)","v":0},{"$f":"IF(O43>0,1,0)","v":0},{"$f":"E43+G43+I43+K43+M43+O43","v":0},{"$f":"$G$12","v":0},null,{"$f":"IFERROR((Q43)*R43,0)","v":0}]
[null,null,"soft",null,{"$f":"SUMIF(E33,\"soft\",F25)","v":0},null,{"$f":"SUMIF(G33,\"soft\",H25)","v":0},{"$f":"IF(G44>0,1,0)","v":0},{"$f":"SUMIF(I33,\"soft\",J25)","v":0},{"$f":"IF(I44>0,1,0)","v":0},{"$f":"SUMIF(K33,\"soft\",L25)","v":0},{"$f":"IF(K44>0,1,0)","v":0},{"$f":"SUMIF(M33,\"soft\",N25)","v":0},{"$f":"IF(M44>0,1,0)","v":0},{"$f":"SUMIF(O33,\"soft\",P25)","v":0},{"$f":"IF(O44>0,1,0)","v":0},0,0,null,{"$f":"IFERROR((Q44)*R44,0)","v":0}]
[null,null,"médium",null,{"$f":"SUMIF(E33,\"médium\",F25)","v":0},null,{"$f":"SUMIF(G33,\"médium\",H25)","v":0},{"$f":"IF(G45>0,1,0)","v":0},{"$f":"SUMIF(I33,\"médium\",J25)","v":0},{"$f":"IF(I45>0,1,0)","v":0},{"$f":"SUMIF(K33,\"médium\",L25)","v":0},{"$f":"IF(K45>0,1,0)","v":0},{"$f":"SUMIF(M33,\"médium\",N25)","v":0},{"$f":"IF(M45>0,1,0)","v":0},{"$f":"SUMIF(O33,\"médium\",P25)","v":0},{"$f":"IF(O45>0,1,0)","v":0},0,0,null,{"$f":"IFERROR((Q45)*R45,0)","v":0}]
[null,null,"hard",null,{"$f":"SUMIF(E33,\"hard\",F25)","v":0},null,{"$f":"SUMIF(G33,\"hard\",H25)","v":0},{"$f":"IF(G46>0,1,0)","v":0},{"$f":"SUMIF(I33,\"hard\",J25)","v":0},{"$f":"IF(I46>0,1,0)","v":0},{"$f":"SUMIF(K33,\"hard\",L25)","v":0},{"$f":"IF(K46>0,1,0)","v":0},{"$f":"SUMIF(M33,\"hard\",N25)","v":0},{"$f":"IF(M46>0,1,0)","v":0},{"$f":"SUMIF(O33,\"hard\",P25)","v":0},{"$f":"IF(O46>0,1,0)","v":0},0,0,null,{"$f":"IFERROR(Q46*R46,0)","v":0}]
[null,null,"(sans) changement de pneus",null,{"$f":"SUMIF(E33,\"sans\",F25)","v":0},null,{"$f":"SUMIF(G33,\"sans\",H25)","v":0},null,{"$f":"SUMIF(I33,\"sans\",J25)","v":0},null,{"$f":"SUMIF(K33,\"sans\",L25)","v":0},null,{"$f":"SUMIF(M33,\"sans\",N25)","v":0},null,{"$f":"SUMIF(O33,\"sans\",P25)","v":0},null,0,0,null,{"$f":"IFERROR(Q47*R47,0)","v":0},"cumul pertes de temps"]
[null,null,"inter",null,{"$f":"SUMIF(E33,\"inter\",F25)","v":0},null,{"$f":"SUMIF(G33,\"inter\",H25)","v":0},{"$f":"IF(G48>0,1,0)","v":0},{"$f":"SUMIF(I33,\"inter\",J25)","v":0},{"$f":"IF(I48>0,1,0)","v":0},{"$f":"SUMIF(K33,\"inter\",L25)","v":0},{"$f":"IF(K48>0,1,0)","v":0},{"$f":"SUMIF(M33,\"inter\",N25)","v":0},{"$f":"IF(M48>0,1,0)","v":0},{"$f":"SUMIF(O33,\"inter\",P25)","v":0},{"$f":"IF(O48>0,1,0)","v":0},0,0,null,{"$f":"IFERROR(Q48*R48,0)","v":0}]
[null,null,"pluie",null,{"$f":"SUMIF(E33,\"pluie\",F25)","v":0},null,{"$f":"SUMIF(G33,\"pluie\",H25)","v":0},{"$f":"IF(G49>0,1,0)","v":0},{"$f":"SUMIF(I33,\"pluie\",J25)","v":0},{"$f":"IF(I49>0,1,0)","v":0},{"$f":"SUMIF(K33,\"pluie\",L25)","v":0},{"$f":"IF(K49>0,1,0)","v":0},{"$f":"SUMIF(M33,\"pluie\",N25)","v":0},{"$f":"IF(M49>0,1,0)","v":0},{"$f":"SUMIF(O33,\"pluie\",P25)","v":0},{"$f":"IF(O49>0,1,0)","v":0},0,0,null,{"$f":"IFERROR(Q49*R49,0)","v":0},{"$f":"U55+V42+C27","v":{"$error":"#N/A"}},{"$f":"U49/86400","v":{"$error":"#N/A"}}]
[null,null,"Nbr de changements de pneu",null,null,null,null,{"$f":"SUM(H43:H49)","v":0},null,{"$f":"SUM(J43:J49)","v":0},null,{"$f":"SUM(L43:L49)","v":0},null,{"$f":"SUM(N43:N49)","v":0},null,{"$f":"SUM(P43:P49)","v":0},{"$f":"P50+N50+L50+J50+H50+F50","v":0},null,null,{"$f":"SUM(T43:T49)","v":0},{"$f":"U49/N58","v":{"$error":"#N/A"}},{"$f":"U50/86400","v":{"$error":"#N/A"}}]
[null,null,"Nbr de refuels",null,null,{"$f":"IF(H36>0,1,0)","v":{"$error":"#N/A"}},null,{"$f":"IF(J36>0,1,0)","v":{"$error":"#N/A"}},null,{"$f":"IF(L36>0,1,0)","v":{"$error":"#N/A"}},null,{"$f":"IF(N36>0,1,0)","v":{"$error":"#N/A"}},null,{"$f":"IF(P36>0,1,0)","v":{"$error":"#N/A"}},null,{"$f":"IF(Q36>0,1,0)","v":0},{"$f":"P51+N51+L51+J51+H51+F51","v":{"$error":"#N/A"}}]
[null,null,null,null,null,null,null,null,null,null,null,null,null,null,null,null,null,null,null,"tps échange pneu :",{"$f":"Q50*K16","v":0},{"$f":"U52/86400","v":"00:00:00"}]
[null,null,null,null,null,null,null,null,null,null,null,null,null,null,null,null,null,null,null,"tps refuel :",{"$f":"$U$36*$R$16","v":{"$error":"#N/A"}},{"$error":"#N/A"}]
[null,null,null,null,null,null,null,null,null,null,null,null,null,null,null,null,"somme max refuel ou échange pneus :",null,null,null,{"$f":"MAX(Q50:Q51)","v":{"$error":"#N/A"}},{"$f":"H16/86400","v":"00:00:03.500"}]
[null,null,null,null,null,null,null,null,null,null,null,null,null,null,null,null,"Temps total arrêt au stand : ",null,null,null,{"$f":"(U54*H16)+U52+U53","v":{"$error":"#N/A"}},{"$f":"U55/86400","v":{"$error":"#N/A"}}]
[]
[]
[null,"Nombre de pits",null,null,{"$f":"U54","v":{"$error":"#N/A"}},null,"Temps /tour : ",null,{"$f":"G10","v":0},null,{"$f":"G12","v":"00:00:00"},null,null,{"$f":"T25","v":0},null,"en",{"$f":"T50+V49","v":{"$error":"#N/A"}},null,null,null,{"$f":"Q58*24","v":{"$error":"#N/A"}}]
[]
[null,"Cumul tps pit(s)",null,null,{"$f":"V55","v":{"$error":"#N/A"}},null,null,null,"Vitesse moy :",null,{"$f":"Q60/U58","v":{"$error":"#N/A"}},null,null,"Distance totale : ",null,null,{"$f":"N58*K3","v":{"$error":"#N/A"}}]
[]
[null,"Tps moyen strat 3",null,null,{"$f":"(T50+V49)/T25","v":{"$error":"#N/A"}},null,null,{"$f":"'Strat 1'!E62","v":{"$error":"#N/A"}},null,null,{"$f":"'Strat 2'!E62","v":{"$error":"#N/A"}},null,null,null,"consommation : ",null,1,{"$f":"P10*Q62","v":{"$error":"#N/A"}}]
[]
[]
[]
[]
[]
[]
[]
[]
[]
[]
[null,null,"Utilisation",null,{"$f":"G10","v":0},{"$f":"#REF!","v":{"$error":"#REF!"}},{"$f":"#REF!","v":{"$error":"#REF!"}}]
[null,null,null,null,{"$f":"G12","v":0},{"$f":"#REF!","v":{"$error":"#REF!"}},{"$f":"#REF!","v":{"$error":"#REF!"}}]
[null,null,"Obligatoire(s)",null,{"$f":"IF(E74=\"obligatoire\",E73,\"libre\")","v":"libre"},{"$f":"IF(F74=\"obligatoire\",F73,\"libre\")","v":{"$error":"#REF!"}},{"$f":"IF(G74=\"obligatoire\",G73,\"libre\")","v":{"$error":"#REF!"}}]
[null,null,null,null,null,null,null,null,null,null,null,null,null,null,null,false]
[null,null,"Utilisés",null,{"$f":"E33","v":0},{"$f":"G33","v":0},{"$f":"I33","v":0},{"$f":"K33","v":0},{"$f":"M33","v":0},{"$f":"O33","v":0},"libre",{"$f":"ISNUMBER(MATCH(E75,$E$77:$K$77,0))","v":true},{"$f":"ISNUMBER(MATCH(F75,$E$77:$K$77,0))","v":false},false,null,{"$f":"COUNTIF(L77:N77,\"FAUX\")","v":2}]

{"sheet":"grille","index":4,"n_rows":102,"n_cols":13,"rows_kept":102,"cut":false,"hidden":false,"merged":[]}
[]
[]
[null,"pneu","pneu1","condition"]
[null,"S soft","S soft","X1"]
[null,"soft","soft","X2"]
[null,"médium","médium","X3"]
[null,"hard","hard","X4"]
[null,"sans","inter","X5"]
[null,"inter","pluie","X6"]
[null,"pluie",null,"X7"]
[null,null,null,"X8"]
[null,null,null,"X9"]
[null,null,null,"X10"]
[null,null,null,"X11"]
[null,null,null,"X12"]
[null,null,null,"X13"]
[null,null,null,"X14"]
[null,null,null,"X15",null,null,null,null,null,null,"circuits","distance","corner"]
[null,null,null,"X16",null,null,null,null,null,null,"Alsace - Village",5.423,17]
[null,null,null,null,null,null,null,null,null,null,"Alsace - Village II",5.423,17]
[null,null,null,null,null,null,null,null,null,null,"Autodrome Lago Maggiore - GP",5.8090000000000002,17]
[null,null,null,null,null,null,null,null,null,null,"Autodrome Lago Maggiore - GP II",5.8090000000000002,17]
[null,null,null,null,null,null,null,null,null,null,"Autodrome Lago Maggiore - Centre",1.706,9]
[null,null,null,null,null,null,null,null,null,null,"Autodrome Lago Maggiore - Centre II",1.706,9]
[null,null,null,null,null,null,null,null,null,null,"Autodrome Lago Maggiore - Est",3.6429999999999998,13]
[null,null,null,null,null,null,null,null,null,null,"Autodrome Lago Maggiore - Est II",3.6429999999999998,13]
[null,null,null,null,null,null,null,null,null,null,"Autodrome Lago Maggiore - Ouest",4.1680000000000001,13]
[null,null,null,null,null,null,null,null,null,null,"Autodrome Lago Maggiore - Ouest II",4.1680000000000001,13]
[null,null,null,null,null,null,null,null,null,null,"Autódromo De Interlagos",4.3090000000000002,15]
[null,null,null,null,null,null,null,null,null,null,"Autodromo Nazionale Monza",5.7930000000000001,11]
[null,null,null,null,null,null,null,null,null,null,"Autodromo Nazionale Monza - sans chicane",5.7549999999999999,9]
[null,null,null,null,null,null,null,null,null,null,"Autopolis International Racing Course",4.67,19]
[null,null,null,null,null,null,null,null,null,null,"Autopolis International Racing Course - Court",3.02,12]
[null,null,null,null,null,null,null,null,null,null,"Blue Moon Bay Speedway",3.2,3]
[null,null,null,null,null,null,null,null,null,null,"Blue Moon Bay Speedway II",3.2,3]
[null,null,null,null,null,null,null,null,null,null,"Blue Moon Bay Speedway - Central A",3.35,10]
[null,null,null,null,null,null,null,null,null,null,"Blue Moon Bay Speedway - Central A II",3.35,10]
[null,null,null,null,null,null,null,null,null,null,"Blue Moon Bay Speedway - Central B",2.86,7]
[null,null,null,null,null,null,null,null,null,null,"Blue Moon Bay Speedway - Central B II",2.86,7]
[null,null,null,null,null,null,null,null,null,null,"Brands Hatch Grand Prix Circuit",3.9460000000000002,9]
[null,null,null,null,null,null,null,null,null,null,"Brands Hatch Indy Circuit",1.929,6]
[null,null,null,null,null,null,null,null,null,null,"BB Raceway",1.665,4]
[null,null,null,null,null,null,null,null,null,null,"BB Raceway II",1.665,4]
[null,null,null,null,null,null,null,null,null,null,"Circuit de Barcelona-Catalunya version GP",4.6550000000000002,13]
[null,null,null,null,null,null,null,null,null,null,"Circuit de la Sarthe",13.625999999999999,38]
[null,null,null,null,null,null,null,null,null,null,"Circuit de la Sarthe (Sans chicane)",13.625999999999999,36]
[null,null,null,null,null,null,null,null,null,null,"Circuit de Sainte-Croix - A",9.4770000000000003,20]
[null,null,null,null,null,null,null,null,null,null,"Circuit de Sainte-Croix - A II",9.4770000000000003,20]
[null,null,null,null,null,null,null,null,null,null,"Circuit de Sainte-Croix - B",7.0620000000000003,16]
[null,null,null,null,null,null,null,null,null,null,"Circuit de Sainte-Croix - B II",7.0620000000000003,16]
[null,null,null,null,null,null,null,null,null,null,"Circuit de Sainte-Croix - C",10.824999999999999,23]
[null,null,null,null,null,null,null,null,null,null,"Circuit de Sainte-Croix - C II",10.824999999999999,26]
[null,null,null,null,null,null,null,null,null,null,"Circuit de Spa-Francorchamps",7.0039999999999996,20]
[null,null,null,null,null,null,null,null,null,null,"Colorado Springs - Lac",2.99,15]
[null,null,null,null,null,null,null,null,null,null,"Colorado Springs - Lac II",2.99,15]
[null,null,null,null,null,null,null,null,null,null,"Dragon Trail - Littoral",5.2089999999999996,17]
[null,null,null,null,null,null,null,null,null,null,"Dragon Trail - Littoral II",5.2089999999999996,17]
[null,null,null,null,null,null,null,null,null,null,"Dragon Trail - Jardins",4.3520000000000003,16]
[null,null,null,null,null,null,null,null,null,null,"Dragon Trail - Jardins II",4.3520000000000003,16]
[null,null,null,null,null,null,null,null,null,null,"Fishermans Ranch",6.8929999999999998,40]
[null,null,null,null,null,null,null,null,null,null,"Fishermans Ranch II",6.8929999999999998,40]
[null,null,null,null,null,null,null,null,null,null,"Fuji International Speedway",4.5629999999999997,16]
[null,null,null,null,null,null,null,null,null,null,"Fuji International Speedway - Court",4.5259999999999998,15]
[null,null,null,null,null,null,null,null,null,null,"Goodwood Motor Circuit",3.8090000000000002,7]
[null,null,null,null,null,null,null,null,null,null,"Kyoto Driving Park - Miyabi",1.9530000000000001,7]
[null,null,null,null,null,null,null,null,null,null,"Kyoto Driving Park - Yamagiwa",4.9119999999999999,15]
[null,null,null,null,null,null,null,null,null,null,"Kyoto Driving Park - Yamagiwa II",4.9119999999999999,15]
[null,null,null,null,null,null,null,null,null,null,"Kyoto Driving Park - Yamagiwa+Miyabi",6.8460000000000001,20]
[null,null,null,null,null,null,null,null,null,null,"Kyoto Driving Park - Yamagiwa+Miyabi II",6.8460000000000001,20]
[null,null,null,null,null,null,null,null,null,null,"Mount Panorama Motor Racing Circuit",6.2130000000000001,22]
[null,null,null,null,null,null,null,null,null,null,"Northern Isle Speedway",0.9,2]
[null,null,null,null,null,null,null,null,null,null,"Northern Isle Speedway – Infield",0.9,2]
[null,null,null,null,null,null,null,null,null,null,"Nürburgring 24 Heures",25.378,170]
[null,null,null,null,null,null,null,null,null,null,"Nürburgring GP",5.1479999999999997,16]
[null,null,null,null,null,null,null,null,null,null,"Nürburgring Nordschleife",20.832000000000001,154]
[null,null,null,null,null,null,null,null,null,null,"Nürburgring Nordschleife - Tracé visiteurs",20.832000000000001,154]
[null,null,null,null,null,null,null,null,null,null,"Red Bull Ring",4.3179999999999996,10]
[null,null,null,null,null,null,null,null,null,null,"Red Bull Ring - Court",2.3359999999999999,6]
[null,null,null,null,null,null,null,null,null,null,"Sardegna - Éoliennes",3.31,14]
[null,null,null,null,null,null,null,null,null,null,"Sardegna - Éoliennes II",3.31,14]
[null,null,null,null,null,null,null,null,null,null,"Sardegna - Piste A",5.1130000000000004,15]
[null,null,null,null,null,null,null,null,null,null,"Sardegna - Piste A II",5.1130000000000004,15]
[null,null,null,null,null,null,null,null,null,null,"Sardegna - Piste B",3.8929999999999998,15]
[null,null,null,null,null,null,null,null,null,null,"Sardegna - Piste B II",3.8929999999999998,15]
[null,null,null,null,null,null,null,null,null,null,"Sardegna - Piste C",2.661,15]
[null,null,null,null,null,null,null,null,null,null,"Sardegna - Piste C II",2.661,15]
[null,null,null,null,null,null,null,null,null,null,"Special Stage Route X",30.283000000000001,4]
[null,null,null,null,null,null,null,null,null,null,"Suzuka Circuit",5.8079999999999998,17]
[null,null,null,null,null,null,null,null,null,null,"Suzuka Circuit - Course Est",2.2429999999999999,6]
[null,null,null,null,null,null,null,null,null,null,"Tokyo Expressway - Boucle intérieure centrale",4.3689999999999998,12]
[null,null,null,null,null,null,null,null,null,null,"Tokyo Expressway - Boucle extérieure centrale",4.4050000000000002,12]
[null,null,null,null,null,null,null,null,null,null,"Tokyo Expressway - Boucle intérieure Est",7.1920000000000002,12]
[null,null,null,null,null,null,null,null,null,null,"Tokyo Expressway - Boucle extérieure Est",7.3010000000000002,12]
[null,null,null,null,null,null,null,null,null,null,"Tokyo Expressway - Boucle extérieure Sud",6.56,16]
[null,null,null,null,null,null,null,null,null,null,"Tokyo Expressway - Boucle intérieure Sud",5.2009999999999996,17]
[null,null,null,null,null,null,null,null,null,null,"Tsukuba Circuit",2.0449999999999999,14]
[null,null,null,null,null,null,null,null,null,null,"WeatherTech Raceway Laguna Seca",3.6,12]
[null,null,null,null,null,null,null,null,null,null,"Willow Springs - Big Willow",3.9510000000000001,9]
[null,null,null,null,null,null,null,null,null,null,"Willow Springs - Horse Thief Mile",1.6240000000000001,12]
[null,null,null,null,null,null,null,null,null,null,"Willow Springs - Horse Thief Mile II",1.6240000000000001,12]
[null,null,null,null,null,null,null,null,null,null,"Willow Springs - Streets of Willow Springs",2.6749999999999998,14]
[null,null,null,null,null,null,null,null,null,null,"Willow Springs - Streets of Willow Springs II",2.6749999999999998,14]

{"sheet":"PIT","index":5,"n_rows":26,"n_cols":33,"rows_kept":26,"cut":false,"hidden":false,"merged":[[10,32,10,33],[6,16,6,17],[8,19,8,20],[3,16,4,18],[6,19,6,22],[8,16,8,17],[10,16,10,17],[14,16,14,17],[3,12,4,14],[24,12,24,14],[22,12,22,14],[20,12,20,14],[12,16,12,17],[16,16,16,17]]}
[]
[null,null,"Aide au calcul des temps d'arrêts réels aux stands :"]
[]
[null,null,null,null,null,null,null,null,null,null,null,null,"Modifier les temps",null,null,null,"Détail des temps d'arrêt et de ravitaillement"]
[]
[]
[null,null,null,null,null,null,null,null,null,null,null,null,"t3",30,null,null,"Temps démontes et montes des pneus : ",null,4.5," (ce temps ne varie pas sur GT)"]
[]
[null,null,null,null,null,null,null,null,null,null,null,null,null,null,null,null,"Temps réel changement pneus = (t2 - t1)",null,{"$f":"N11-N17","v":8},"(temps sec)",null,null,null,null,null,null,null,null,null,null,null,{"$f":"S9+S11","v":23}]
[]
[null,null,null,null,null,null,null,null,null,null,null,null,"t2",15,null,null,"Temps de remplissage max du réservoir : ",null,{"$f":"N7-N11","v":15},null,{"$f":"S11/U15","v":0.15},"/ litre",null,null,null,null,null,null,null,"Consommation : ",null,{"$f":"U15/S15","v":{"$error":"#DIV/0!"}},"litres/tour"]
[]
[null,null,null,null,null,null,null,null,null,null,null,null,null,null,null,null,"Temps de remplissage pour 1 tour : ",null,{"$f":"AF11*U11","v":{"$error":"#DIV/0!"}}]
[]
[null,null,null,null,null,null,null,null,null,null,null,null,null,null,null,null,"Capacité max réservoir : ",null,{"$f":"'Strat 1'!M10","v":0},null,{"$f":"'Strat 1'!O12","v":100}]
[]
[null,null,null,null,null,null,null,null,null,null,null,null,"t1",7,null,null,"Vitesse de ravitaillement : ",null,{"$f":"(1*U15)/S11","v":6.666666666666667},"litres/seconde"]
[null,null,null,null,null,null,null,null,null,null,null,null,null,null,null,null,"vous pouvez vérifier l'exactitude avec les infos course sur Gran Turismo"]
[]
[]
[null,"t1 = temps de parcours voiture sur la piste entre l'entrée et la sortie des stands",null,null,null,null,null,null,null,null,null,null,"Pour obtenir t1 :",null,null,"relever le temps de passage de votre voiture entre l'entrée et la sortie des stands (en condition course)"]
[]
[null,"t2 = temps d'entrée au stand + temps PIT (changement pneus) + temps de sortie des stands",null,null,null,null,null,null,null,null,null,null,"Pour obtenir t2 :",null,null,"faire un arrêt avec seulement un changement de pneus et relever le temps indiqué sur l'écran en sortie de stand."]
[]
[null,"t3 = temps d'entrée au stand + changement pneus + refuel complet + temps de sortie des stands",null,null,null,null,null,null,null,null,null,null,"Pour obtenir t3 :",null,null,"faire un arrêt avec changement de pneu et refuel complet. Relever le temps d'arrêt indiqué sur l'écran à la sortie"]
[null,null,null,null,null,null,null,null,null,null,null,null,null,null,null," du stand."]

{"sheet":"grille2","index":6,"n_rows":371,"n_cols":5,"rows_kept":371,"cut":false,"hidden":false,"merged":[]}
[]
[]
[]
[null,"catégories",null,"Voitures"]
[null,"GR1_",null,"GR1"]
[null,"GR2_",null,"Alpine VGT 2017"]
[null,"GR3_",null,"Audi Audi VGT"]
[null,"GR4_",null,"Audi R18 (Audi Sport Team Joest) '16"]
[null,"GRB",null,"Audi R18 TDI (Audi Sport Team Joest) '11"]
[null,"GRX",null,"Audi R18 TDI (Le Mans 2011)"]
[null,"N1000_",null,"Bugatti VGT (Gr.1)"]
[null,"N100_",null,"Dodge SRT Tomahawk VGT (Gr.1)"]
[null,"N200_",null,"Hyundai HYUNDAI N 2025 VGT (Gr.1)"]
[null,"N300_",null,"Jaguar XJR-9 '88"]
[null,"N400_",null,"Mazda 787B '91"]
[null,"N500_",null,"Mazda LM55 VGT (Gr.1)"]
[null,"N600_",null,"McLaren Ultimate VGT (Gr.1)"]
[null,"N700_",null,"Mercedes-Benz Sauber Mercedes C9 '89"]
[null,"N800_",null,"Nissan GT-R LM NISMO '15"]
[null,null,null,"Nissan R92CP '92"]
[null,null,null,"Peugeot 908 HDi FAP - Team Peugeot Total '10"]
[null,null,null,"Peugeot L750R HYbrid VGT 2017"]
[null,null,null,"Porsche 919 Hybrid (Porsche Team) '16"]
[null,null,null,"Porsche 962 C '88"]
[null,null,null,"Toyota TS030 Hybrid '12"]
[null,null,null,"Toyota TS050 - Hybrid (Toyota Gazoo Racing) '16"]
[]
[null,null,null,"GR2"]
[null,null,null,"Honda ESPON NSX '08"]
[null,null,null,"Honda RAYBRIG NSX CONCEPT-GT '16"]
[null,null,null,"Lexus au TOM'S RC F '16"]
[null,null,null,"Lexus PETRONAS TOM'S SC430 '08"]
[null,null,null,"Nissan MOTUL AUTECH GT-R '16"]
[null,null,null,"Nissan XANAVI NISMO GT-R '08"]
[]
[null,null,null,"GR3"]
[null,null,null,"Alfa Romeo 4C Gr.3"]
[null,null,null,"Aston Martin DBR9 GT1 '10"]
[null,null,null,"Aston Martin V12 Vantage GT3 '12"]
[null,null,null,"Audi R8 LMS (Audi Sport Team WRT) '15"]
[null,null,null,"BMW M3 GT (BMW Motorsport) '11"]
[null,null,null,"BMW M6 GT3 (Walkenhorst Motorsport) '16"]
[null,null,null,"BMW M6 GT3 M Power Livery '16"]
[null,null,null,"BMW Z4 GT3 '11"]
[null,null,null,"Chevrolet Corvette C7 Gr.3"]
[null,null,null,"Citroën GT by Citroën Race Car (Gr.3)"]
[null,null,null,"Dodge Viper SRT GT3-R '15"]
[null,null,null,"Ferrari 458 Italia GT3 '13"]
[null,null,null,"Ford GT LM Spec II Test Car"]
[null,null,null,"Ford Mustang Gr.3"]
[null,null,null,"Honda NSX Gr.3"]
[null,null,null,"Hyundai Genesis Gr.3"]
[null,null,null,"Jaguar F-type Gr.3"]
[null,null,null,"Lamborghini Huracàn GT3 '15"]
[null,null,null,"Lexus RC F GT3 (Emil Frey Racing) '17"]
[null,null,null,"Lexus RC F GT3 prototype (Emil Frey Racing) '16"]
[null,null,null,"Mazda Atenza Gr.3"]
[null,null,null,"Mazda RX-VISION GT3 CONCEPT"]
[null,null,null,"McLaren 650S GT3 '15"]
[null,null,null,"McLaren F1 GTR - BMW '95"]
[null,null,null,"Mercedes-Benz -AMG GT GT3 '16"]
[null,null,null,"Mercedes-Benz SLS AMG GT3 '11"]
[null,null,null,"Mitsubishi Lancer Evolution Final Edition Gr.3"]
[null,null,null,"Nissan GT-R NISMO GT3 N24 Schulze Motorsport '13"]
[null,null,null,"Peugeot VGT (Gr.3)"]
[null,null,null,"Peugeot RCZ Gr.3"]
[null,null,null,"Porsche 911 RSR (991) '17"]
[null,null,null,"Renault Sport R.S.01 GT3 '16"]
[null,null,null,"Subaru WRX Gr.3"]
[null,null,null,"Toyota FT-1 VGT (Gr.3)"]
[null,null,null,"Toyota GR Supra Racing Concept '18"]
[null,null,null,"Volkswagen Beetle Gr.3"]
[null,null,null,"Volkswagen GTI VGT (Gr.3)"]
[]
[null,null,null,"GR4"]
[null,null,null,"Alfa Romeo 4C Gr.4"]
[null,null,null,"Aston Martin Vantage Gr.4"]
[null,null,null,"Audi TT Cup '16"]
[null,null,null,"BMW M4 Gr.4"]
[null,null,null,"Bugatti Veyron Gr.4"]
[null,null,null,"Chevrolet Corvette C7 Gr.4"]
[null,null,null,"Citroën GT by Citroën Gr.4"]
[null,null,null,"Dodge Viper Gr.4"]
[null,null,null,"Ferrari 458 Italia Gr.4"]
[null,null,null,"Ford Mustang Gr.4"]
[null,null,null,"Honda NSX Gr.4"]
[null,null,null,"Hyundai Genesis Gr.4"]
[null,null,null,"Jaguar F-type Gr.4"]
[null,null,null,"Lamborghini Huracàn Gr.4"]
[null,null,null,"Lexus RC F Gr.4"]
[null,null,null,"Mazda Atenza Gr.4"]
[null,null,null,"McLaren 650S Gr.4"]
[null,null,null,"Mercedes-Benz SLS AMG Gr.4"]
[null,null,null,"Mitsubishi Lancer Evolution Final Edition Gr.4"]
[null,null,null,"Nissan GT-R Gr.4"]
[null,null,null,"Peugeot RCZ Gr.4"]
[null,null,null,"Porsche Cayman GT4 Clubsport '16"]
[null,null,null,"Renault Sport Mégane Gr.4"]
[null,null,null,"Renault Sport Mégane Trophy '11"]
[null,null,null,"Subaru WRX Gr.4"]
[null,null,null,"Toyota 86 Gr.4"]
[null,null,null,"Toyota GR Supra (Nürburgring '19 Livery)"]
[null,null,null,"Volkswagen Scirocco Gr.4"]
[]
[null,null,null,"GRB"]
[null,null,null,"Audi Sport quattro S1 Pikes Peak '87"]
[null,null,null,"Ford Focus Gr.B Rally Car"]
[null,null,null,"Ford Mustang Gr.B Rally Car"]
[null,null,null,"Honda NSX Gr.B Rally Car"]
[null,null,null,"Hyundai Genesis Gr.B Rally Car"]
[null,null,null,"Mitsubishi Lancer Evolution Final Edition Gr.B Rally Car"]
[null,null,null,"Nissan GT-R Gr.B Rally Car"]
[null,null,null,"Peugeot RCZ Gr.B Rally Car"]
[null,null,null,"Subaru WRX Gr.B Rally Car"]
[null,null,null,"Toyota 86 Gr.B Rally Car"]
[]
[null,null,null,"GRX"]
[null,null,null,"Alfa Romeo GIULIA TZ2 CN.AR750106 '65"]
[null,null,null,"Alpine VGT"]
[null,null,null,"Alpine VGT Race Mode"]
[null,null,null,"Aston Martin DP-100 VGT"]
[null,null,null,"Aston Martin DB3S CN.1 '53"]
[null,null,null,"Audi e-tron VGT"]
[null,null,null,"BMW VGT"]
[null,null,null,"BMW i3 '15"]
[null,null,null,"BMW M4 Safety Car"]
[null,null,null,"Bugatti Bugatti VGT"]
[null,null,null,"Chaparral Chevrolet Chaparral 2X VGT"]
[null,null,null,"Chevrolet Corvette StingRay Racer Concept '59"]
[null,null,null,"Daihatsu DAIHATSU COPEN RJ VGT"]
[null,null,null,"Dodge Charger SRT Hellcat Safety Car"]
[null,null,null,"Dodge SRT Tomahawk GTS-R VGT"]
[null,null,null,"Dodge SRT Tomahawk S VGT"]
[null,null,null,"Dodge SRT Tomahawk X VGT"]
[null,null,null,"Ferrari 250 GTO CN.3729GT '62"]
[null,null,null,"Ferrari 330 P4 '67"]
[null,null,null,"Fittipaldi Motors Fittipaldi EF7 VGT"]
[null,null,null,"Ford Mark IV Race Car '67"]
[null,null,null,"Gran Turismo F1500T-A"]
[null,null,null,"Gran Turismo Racing Kart 125 Shifter"]
[null,null,null,"Gran Turismo Red Bull X2014 Junior"]
[null,null,null,"Gran Turismo Red Bull X2014 Standard"]
[null,null,null,"Gran Turismo Red Bull X2019 Competition"]
[null,null,null,"Honda Sports VGT"]
[null,null,null,"Honda Project 2&4 powered by RC213V"]
[null,null,null,"Hyundai HYUNDAI N 2025 VGT"]
[null,null,null,"Infiniti INFINITI CONCEPT VGT"]
[null,null,null,"Jaguar D-type '54"]
[null,null,null,"Jaguar VGT Coupé"]
[null,null,null,"Jaguar XJ13"]
[null,null,null,"Lexus LF-LC GT VGT"]
[null,null,null,"Mazda LM55 VGT"]
[null,null,null,"McLaren P1 GTR '16"]
[null,null,null,"McLaren Ultimate VGT"]
[null,null,null,"Mercedes-Benz 300 SEL 6.8 AMG '71"]
[null,null,null,"Mercedes-Benz AMG VGT LH Edition"]
[null,null,null,"Mercedes-Benz F1 W08 EQ Power+ (Color Variation) 2017"]
[null,null,null,"Mercedes-Benz F1 W08 EQ Power+ 2017"]
[null,null,null,"Mercedes-Benz-AMG GT Safety Car"]
[null,null,null,"Mercedes-Benz -Benz AMG VGT"]
[null,null,null,"Mercedes-Benz-Benz AMG VGT Racing Series"]
[null,null,null,"Mini MINI Clubman VGT"]
[null,null,null,"Mitsubishi Concept XR-PHEV EVOLUTION VGT"]
[null,null,null,"Nissan GT-R Safety Car"]
[null,null,null,"Nissan CONCEPT 2020 VGT"]
[null,null,null,"Pagani Zonda R '09"]
[null,null,null,"Peugeot L500R HYbrid VGT 2017"]
[null,null,null,"Peugeot VGT"]
[null,null,null,"Porsche Taycan Turbo S '19"]
[null,null,null,"Renault R8 Gordini '66"]
[null,null,null,"Renault Sport Mégane R.S. Trophy Safety Car"]
[null,null,null,"Renault Sport R.S.01 '16"]
[null,null,null,"Shelby Cobra Daytona Coupé '64"]
[null,null,null,"Subaru Falken Tire / Turn 14 Distribution BRZ '17"]
[null,null,null,"Subaru VIZIV GT VGT"]
[null,null,null,"Subaru WRX STI Isle Of Man Time Attack Car '16"]
[null,null,null,"Super Formula SF19 / Honda '19"]
[null,null,null,"Super Formula SF19 / Toyota '19"]
[null,null,null,"Tesla Motors Model S Signature Performance '12"]
[null,null,null,"Toyota Crown Athlete G Safety Car"]
[null,null,null,"Toyota FT-1"]
[null,null,null,"Toyota FT-1 VGT"]
[null,null,null,"Volkswagen GTI Roadster VGT"]
[null,null,null,"Volkswagen GTI Supersport VGT"]
[null,null,null,"Zagato IsoRivolta Zagato VGT"]
[]
[null,null,null,"N1000"]
[null,null,null,"Bugatti Veyron 16.4 '13"]
[null,null,null,"Ferrari LaFerrari '13"]
[]
[null,null,null,"N100"]
[null,null,null,"Abarth 1500 Biposto Bertone B.A.T 1 '52"]
[null,null,null,"Abarth 500 '09"]
[null,null,null,"Alpine A110 1600S '72"]
[null,null,null,"Daihatsu Copen '02"]
[null,null,null,"Fiat 500 1.2 8V Lounge SS '08"]
[null,null,null,"Fiat 500 F '68"]
[null,null,null,"Honda Beat '91"]
[null,null,null,"Honda Fit Hybrid '14"]
[null,null,null,"Honda S660 '15"]
[null,null,null,"Honda S800 '66"]
[null,null,null,"Mazda Demio XD Touring '15"]
[null,null,null,"Mazda Eunos Roadster (NA) '89"]
[null,null,null,"Mazda Roadster S (ND) '15"]
[null,null,null,"Mini Mini-Cooper 'S' '65"]
[null,null,null,"Porsche 356 A/1500 GS GT Carrera Speedster '56"]
[null,null,null,"Suzuki SWIFT Sport '07"]
[null,null,null,"Toyota Corolla Levin 1600GT APEX (AE86) '83"]
[null,null,null,"Toyota S-FR '15"]
[null,null,null,"Toyota Sports 800 '65"]
[null,null,null,"Toyota Sprinter Trueno 1600GT APEX (AE86) '83"]
[null,null,null,"Volkswagen Golf I GTI '83"]
[null,null,null,"Volkswagen Sambabus Typ 2 (T1) '62"]
[null,null,null,"Volkswagen 1200 '66"]
[]
[null,null,null,"N200"]
[null,null,null,"Alfa Romeo 4C Launch Edition '14"]
[null,null,null,"Alfa Romeo MiTo 1.4 T Sport '09"]
[null,null,null,"Audi TT Coupé 3.2 quattro '03"]
[null,null,null,"BMW M3 Sport Evolution '89"]
[null,null,null,"Citroën DS3 Racing '11"]
[null,null,null,"Ferrari Dino 246 GT '71"]
[null,null,null,"Honda Civic Type R (EK) '98"]
[null,null,null,"Honda Integra Type R (DC2) '98"]
[null,null,null,"Honda S2000 '99"]
[null,null,null,"Lancia DELTA HF Integrale Evoluzione '91"]
[null,null,null,"Lancia Stratos '73"]
[null,null,null,"Mazda Atenza Sedan XD L package '15"]
[null,null,null,"Mazda Roadster Touring Car"]
[null,null,null,"Mazda RX-7 GT-X (FC) '90"]
[null,null,null,"Mini MINI Cooper S '05"]
[null,null,null,"Nissan 180SX Type X '96"]
[null,null,null,"Nissan Silvia K's Dia Selection (S13) '90"]
[null,null,null,"Peugeot 208 GTi by Peugeot Sport '14"]
[null,null,null,"Peugeot RCZ GT Line '15"]
[null,null,null,"Pontiac Firebird Trans Am '78"]
[null,null,null,"Renault Sport Clio R.S. 220 EDC Trophy '15"]
[null,null,null,"Renault Sport Clio R.S. 220 EDC Trophy '16"]
[null,null,null,"Renault Sport Clio V6 24V '00"]
[null,null,null,"Subaru BRZ S '15"]
[null,null,null,"Toyota 2000GT '67"]
[null,null,null,"Toyota 86 GRMN '16"]
[null,null,null,"Toyota 86 GT \"LIMITED\" '16"]
[null,null,null,"Toyota 86 GT '15"]
[null,null,null,"Toyota MR2 GT-S '97"]
[null,null,null,"Toyota GR 86 '21","2021-07-08"]
[null,null,null,"Volkswagen Golf VII GTI '14"]
[]
[null,null,null,"N300"]
[null,null,null,"Alpine A110 Première Édition '17"]
[null,null,null,"Audi TTS Coupé '14"]
[null,null,null,"BMW M3 '03"]
[null,null,null,"Chevrolet Camaro Z28 '69"]
[null,null,null,"Chevrolet Corvette Stingray Convertible (C3) '69"]
[null,null,null,"De Tomaso Pantera '71"]
[null,null,null,"Dodge Super Bee '70"]
[null,null,null,"Ferrari 250 GT Berlinetta Passo Corto CN.2521 '61"]
[null,null,null,"Ford Focus ST '15"]
[null,null,null,"Ford Mustang Mach 1 '71"]
[null,null,null,"Gran Turismo Greddy FuGu Z"]
[null,null,null,"Honda Civic Type R (FK2) '15"]
[null,null,null,"Honda NSX Type R '92"]
[null,null,null,"Hyundai Genesis Coupe 3.8 Track '13"]
[null,null,null,"Jaguar E-type Coupé '61"]
[null,null,null,"KTM X-BOW R '12"]
[null,null,null,"Mazda RX-7 Spirit R Type A (FD) '02"]
[null,null,null,"Mazda RX500 '70"]
[null,null,null,"Mitsubishi GTO Twin Turbo '91"]
[null,null,null,"Mitsubishi Lancer Evolution Final Edition '15"]
[null,null,null,"Mitsubishi Lancer Evolution IV GSR '96"]
[null,null,null,"Nissan Fairlady Z 300ZX TT 2seater '89"]
[null,null,null,"Nissan Fairlady Z Version S (Z33) '07"]
[null,null,null,"Nissan SKYLINE GT-R V • Spec (R33) '97"]
[null,null,null,"Nissan Skyline GT-R V • spec II (R32) '94"]
[null,null,null,"Nissan Skyline GT-R V • spec II Nür (R34) '02"]
[null,null,null,"Plymouth XNR Ghia Roadster '60"]
[null,null,null,"Porsche 911 Carrera RS CS (993) '95"]
[null,null,null,"Porsche 911 Turbo (930) '81"]
[null,null,null,"Renault Sport Mégane R.S. Trophy '11"]
[null,null,null,"Shelby G.T.350 '65"]
[null,null,null,"Subaru IMPREZA 22B-STi '98"]
[null,null,null,"Subaru Impreza Coupe WRX Type R STi Version VI '99"]
[null,null,null,"Subaru WRX STI Type S '14"]
[null,null,null,"Toyota Crown Athlete G '13"]
[null,null,null,"Toyota GR Supra RZ '19"]
[null,null,null,"Toyota GR Yaris RZ \"High Performance\" '20"]
[null,null,null,"Toyota SUPRA 3.0GT Turbo A '88"]
[null,null,null,"Toyota SUPRA RZ '97"]
[]
[null,null,null,"N400"]
[null,null,null,"Aston Martin V8 Vantage S '15"]
[null,null,null,"Audi R8 4.2 FSI R tronic '07"]
[null,null,null,"BMW M3 '07"]
[null,null,null,"BMW M4 Coupé '14"]
[null,null,null,"BMW Z8 '01"]
[null,null,null,"Chevrolet Corvette C2 '63"]
[null,null,null,"Dodge Challenger R/T '70"]
[null,null,null,"Ferrari 365 GTB4 '71"]
[null,null,null,"Ferrari 512 BB '76"]
[null,null,null,"Ferrari GTO '84"]
[null,null,null,"Ford F-150 SVT Raptor '11"]
[null,null,null,"Ford GT40 Mark I '66"]
[null,null,null,"Ford Mustang GT Premium Fastback '15"]
[null,null,null,"Lamborghini Countach LP400 '74"]
[null,null,null,"Lamborghini Miura P400 Bertone Prototype CN.0706 '67"]
[null,null,null,"Maserati GranTurismo S '08"]
[null,null,null,"Mercedes-Benz A 45 AMG 4MATIC '13"]
[null,null,null,"Porsche 911 GT3 (996) '01"]
[null,null,null,"Porsche 911 GT3 (997) '08"]
[null,null,null,"Re Amemiya RE Amemiya FD3S RX-7"]
[null,null,null,"Toyota GR Supra RZ '20"]
[null,null,null,"Toyota S-FR Racing Concept '16"]
[null,null,null,"Toyota Tundra TRD Pro '19"]
[null,null,null,"TVR Tuscan Speed 6 '00"]
[]
[null,null,null,"N500"]
[null,null,null,"Alfa Romeo 4C Gr.3 Road Car"]
[null,null,null,"Chevrolet Camaro SS '16"]
[null,null,null,"Chevrolet Corvette C7 Gr.3 Road Car"]
[null,null,null,"Chevrolet Corvette Stingray (C7) '14"]
[null,null,null,"Citroën GT by Citroën Road Car"]
[null,null,null,"Dodge Viper GTS '02"]
[null,null,null,"Dodge Viper SRT10 Coupé '06"]
[null,null,null,"Ferrari F40 '92"]
[null,null,null,"Ferrari F50 '95"]
[null,null,null,"Ford Mustang Gr.3 Road Car"]
[null,null,null,"Lamborghini Countach 25th Anniversary '88"]
[null,null,null,"Lexus LC500 '17"]
[null,null,null,"Lexus RC F '14"]
[null,null,null,"Mazda Atenza Gr.3 Road Car"]
[null,null,null,"Mercedes-Benz -AMG GT S '15"]
[null,null,null,"Mitsubishi Lancer Final Edition Gr.B Road Car"]
[null,null,null,"Peugeot RCZ Gr.3 Road Car"]
[null,null,null,"Porsche 911 GT3 RS (991) '16"]
[null,null,null,"Shelby Cobra 427 '66"]
[null,null,null,"Subaru WRX Gr.B Road Car"]
[]
[null,null,null,"N600"]
[null,null,null,"Aston Martin DB11 '16"]
[null,null,null,"Dodge Viper GTS '13"]
[null,null,null,"Ferrari 458 Italia '09"]
[null,null,null,"Ford Ford GT '06"]
[null,null,null,"Gran Turismo Amuse S2000 GT1 Turbo"]
[null,null,null,"Honda NSX '17"]
[null,null,null,"Jaguar F-type R Coupé '14"]
[null,null,null,"Lamborghini Diablo GT '00"]
[null,null,null,"Lamborghini Huracàn LP 610-4 '15"]
[null,null,null,"McLaren F1 '94"]
[null,null,null,"McLaren MP4-12C '10"]
[null,null,null,"Mercedes-Benz SLR McLaren '09"]
[null,null,null,"Mercedes-Benz SLS AMG '10"]
[null,null,null,"Nissan GT-R NISMO '17"]
[null,null,null,"Nissan GT-R Premium edition '17"]
[]
[null,null,null,"N700"]
[null,null,null,"Chevrolet Camaro ZL1 1LE Package '18"]
[null,null,null,"Dodge Charger SRT Hellcat '15"]
[null,null,null,"Ferrari Enzo Ferrari '02"]
[null,null,null,"Ford GT '17"]
[null,null,null,"Gran Turismo 1967 Chevy Nova"]
[null,null,null,"Lamborghini Aventador LP 700-4 '11"]
[null,null,null,"McLaren 650 S Coupe '14"]
[null,null,null,"Pagani Huayra '13"]
[null,null,null,"RUF CTR3 '07"]
[]
[null,null,null,"N800"]
[null,null,null,"Aston Martin One-77 '11"]
[null,null,null,"Aston Martin Vulcan '16"]
[null,null,null,"Gran Turismo Mach Forty"]
[null,null,null,"Lamborghini Aventador LP 750-4 SV '15"]
[null,null,null,"Lamborghini Veneno '14"]